Workbook

Sheet fullhard
B2: ID | C2: Categoria | D2: Spessore (mm) | E2: Larghezza (mm) | F2: Peso (kg) | G2: kg / mm
B3: FH000119001 | C3: Fullhard | D3: 0.26 | E3: 1,161 | F3: 2,348 | G3: =F3/E3 -> 2.02
B4: FH000119002 | C4: Fullhard | D4: 0.26 | E4: 1,162 | F4: 3,864 | G4: 3.33
B5: FH000119003 | C5: Fullhard | D5: 0.27 | E5: 1,005 | F5: 5,592 | G5: 5.56
B6: FH000119004 | C6: Fullhard | D6: 0.28 | E6: 1,055 | F6: 9,764 | G6: 9.25
B7: FH000119012 | C7: Fullhard | D7: 0.28 | E7: 1,186 | F7: 5,840 | G7: 4.92
B8: FH000119006 | C8: Fullhard | D8: 0.28 | E8: 1,205 | F8: 4,275 | G8: 3.55
B9: FH000119005 | C9: Fullhard | D9: 0.28 | E9: 1,255 | F9: 2,600 | G9: 2.07
B10: FH000119007 | C10: Fullhard | D10: 0.28 | E10: 1,255 | F10: 3,600 | G10: 2.87
B11: FH000119008 | C11: Fullhard | D11: 0.28 | E11: 1,255 | F11: 3,000 | G11: 2.39
B12: FH000119009 | C12: Fullhard | D12: 0.28 | E12: 1,255 | F12: 3,900 | G12: 3.11
B13: FH000119010 | C13: Fullhard | D13: 0.28 | E13: 1,255 | F13: 2,500 | G13: 1.99
B14: FH000119011 | C14: Fullhard | D14: 0.28 | E14: 1,255 | F14: 2,250 | G14: 1.79
B15: FH000119013 | C15: Fullhard | D15: 0.29 | E15: 1,200 | F15: 8,554 | G15: 7.13
B16: FH000119014 | C16: Fullhard | D16: 0.30 | E16: 1,170 | F16: 1,562 | G16: 1.34
B17: FH000119015 | C17: Fullhard | D17: 0.30 | E17: 1,170 | F17: 1,500 | G17: 1.28
B18: FH000119016 | C18: Fullhard | D18: 0.30 | E18: 1,170 | F18: 4,150 | G18: 3.55
B19: FH000119019 | C19: Fullhard | D19: 0.30 | E19: 1,223 | F19: 2,700 | G19: 2.21
B20: FH000119017 | C20: Fullhard | D20: 0.30 | E20: 1,255 | F20: 4,310 | G20: 3.43
B21: FH000119018 | C21: Fullhard | D21: 0.30 | E21: 1,255 | F21: 5,565 | G21: 4.43
B22: FH000119022 | C22: Fullhard | D22: 0.31 | E22: 1,055 | F22: 1,062 | G22: 1.01
B23: FH000119023 | C23: Fullhard | D23: 0.31 | E23: 1,071 | F23: 1,400 | G23: 1.31
B24: FH000119020 | C24: Fullhard | D24: 0.31 | E24: 1,075 | F24: 1,239 | G24: 1.15
B25: FH000119021 | C25: Fullhard | D25: 0.31 | E25: 1,075 | F25: 1,809 | G25: 1.68
B26: FH000119024 | C26: Fullhard | D26: 0.31 | E26: 1,297 | F26: 9,635 | G26: 7.43
B27: FH000119029 | C27: Fullhard | D27: 0.32 | E27: 975 | F27: 6,846 | G27: 7.02
B28: FH000119026 | C28: Fullhard | D28: 0.32 | E28: 1,060 | F28: 3,120 | G28: 2.94
B29: FH000119032 | C29: Fullhard | D29: 0.32 | E29: 1,065 | F29: 2,031 | G29: 1.91
B30: FH000119031 | C30: Fullhard | D30: 0.32 | E30: 1,071 | F30: 2,550 | G30: 2.38
B31: FH000119027 | C31: Fullhard | D31: 0.32 | E31: 1,235 | F31: 4,300 | G31: 3.48
B32: FH000119030 | C32: Fullhard | D32: 0.32 | E32: 1,235 | F32: 3,224 | G32: 2.61
B33: FH000119028 | C33: Fullhard | D33: 0.32 | E33: 1,257 | F33: 12,646 | G33: 10.06
B34: FH000119025 | C34: Fullhard | D34: 0.32 | E34: 1,325 | F34: 2,075 | G34: 1.57
B35: FH000119033 | C35: Fullhard | D35: 0.34 | E35: 1,005 | F35: 5,000 | G35: =F35/E35 -> 4.98
B36: FH000119041 | C36: Fullhard | D36: 0.35 | E36: 1,000 | F36: 5,160 | G36: 5.16
B37: FH000119034 | C37: Fullhard | D37: 0.35 | E37: 1,070 | F37: 2,114 | G37: 1.98
B38: FH000119035 | C38: Fullhard | D38: 0.35 | E38: 1,076 | F38: 4,030 | G38: 3.75
B39: FH000119037 | C39: Fullhard | D39: 0.35 | E39: 1,255 | F39: 2,100 | G39: 1.67
B40: FH000119038 | C40: Fullhard | D40: 0.35 | E40: 1,255 | F40: 2,025 | G40: 1.61
B41: FH000119040 | C41: Fullhard | D41: 0.35 | E41: 1,275 | F41: 3,400 | G41: 2.67
B42: FH000119036 | C42: Fullhard | D42: 0.35 | E42: 1,385 | F42: 4,700 | G42: 3.39
B43: FH000119039 | C43: Fullhard | D43: 0.35 | E43: 1,385 | F43: 2,300 | G43: 1.66
B44: FH000119042 | C44: Fullhard | D44: 0.36 | E44: 1,091 | F44: 1,500 | G44: 1.37
B45: FH000119044 | C45: Fullhard | D45: 0.38 | E45: 1,255 | F45: 4,494 | G45: 3.58
B46: FH000119045 | C46: Fullhard | D46: 0.40 | E46: 1,030 | F46: 12,273 | G46: 11.92
B47: FH000119048 | C47: Fullhard | D47: 0.40 | E47: 1,227 | F47: 1,902 | G47: 1.55
B48: FH000119049 | C48: Fullhard | D48: 0.40 | E48: 1,257 | F48: 2,370 | G48: 1.89
B49: FH000119054 | C49: Fullhard | D49: 0.42 | E49: 1,072 | F49: 4,980 | G49: 4.65
B50: FH000119052 | C50: Fullhard | D50: 0.42 | E50: 1,255 | F50: 1,520 | G50: 1.21
B51: FH000119053 | C51: Fullhard | D51: 0.42 | E51: 1,255 | F51: 6,500 | G51: 5.18
B52: FH000119055 | C52: Fullhard | D52: 0.42 | E52: 1,255 | F52: 3,900 | G52: 3.11
B53: FH000119056 | C53: Fullhard | D53: 0.43 | E53: 1,392 | F53: 2,400 | G53: 1.72
B54: FH000119057 | C54: Fullhard | D54: 0.43 | E54: 1,392 | F54: 2,900 | G54: 2.08
B55: FH000119059 | C55: Fullhard | D55: 0.44 | E55: 1,150 | F55: 1,335 | G55: 1.16
B56: FH000119058 | C56: Fullhard | D56: 0.44 | E56: 1,257 | F56: 1,786 | G56: 1.42
B57: FH000119071 | C57: Fullhard | D57: 0.45 | E57: 1,005 | F57: 4,960 | G57: 4.94
B58: FH000119070 | C58: Fullhard | D58: 0.45 | E58: 1,090 | F58: 2,391 | G58: 2.19
B59: FH000119067 | C59: Fullhard | D59: 0.45 | E59: 1,222 | F59: 3,630 | G59: 2.97
B60: FH000119063 | C60: Fullhard | D60: 0.45 | E60: 1,227 | F60: 27,600 | G60: 22.49
B61: FH000119064 | C61: Fullhard | D61: 0.45 | E61: 1,255 | F61: 4,700 | G61: 3.75
B62: FH000119068 | C62: Fullhard | D62: 0.45 | E62: 1,255 | F62: 2,037 | G62: =F62/E62 -> 1.62
B63: FH000119065 | C63: Fullhard | D63: 0.45 | E63: 1,256 | F63: 4,610 | G63: 3.67
B64: FH000119060 | C64: Fullhard | D64: 0.45 | E64: 1,257 | F64: 1,280 | G64: 1.02
B65: FH000119062 | C65: Fullhard | D65: 0.45 | E65: 1,257 | F65: 2,500 | G65: 1.99
B66: FH000119066 | C66: Fullhard | D66: 0.45 | E66: 1,257 | F66: 1,732 | G66: 1.38
B67: FH000119069 | C67: Fullhard | D67: 0.45 | E67: 1,377 | F67: 1,520 | G67: 1.10
B68: FH000119073 | C68: Fullhard | D68: 0.47 | E68: 1,253 | F68: 1,700 | G68: 1.36
B69: FH000119072 | C69: Fullhard | D69: 0.47 | E69: 1,255 | F69: 1,180 | G69: 0.94
B70: FH000119074 | C70: Fullhard | D70: 0.48 | E70: 1,255 | F70: 14,500 | G70: 11.55
B71: FH000119078 | C71: Fullhard | D71: 0.50 | E71: 1,005 | F71: 3,178 | G71: 3.16
B72: FH000119075 | C72: Fullhard | D72: 0.50 | E72: 1,210 | F72: 1,120 | G72: 0.93
B73: FH000119080 | C73: Fullhard | D73: 0.50 | E73: 1,227 | F73: 9,993 | G73: 8.14
B74: FH000119079 | C74: Fullhard | D74: 0.50 | E74: 1,257 | F74: 3,400 | G74: 2.70
B75: FH000119077 | C75: Fullhard | D75: 0.50 | E75: 1,392 | F75: 1,180 | G75: 0.85
B76: FH000119076 | C76: Fullhard | D76: 0.50 | E76: 1,506 | F76: 3,160 | G76: 2.10
B77: FH000119081 | C77: Fullhard | D77: 0.51 | E77: 1,226 | F77: 2,731 | G77: 2.23
B78: FH000119082 | C78: Fullhard | D78: 0.53 | E78: 1,250 | F78: 3,330 | G78: 2.66
B79: FH000119091 | C79: Fullhard | D79: 0.55 | E79: 914 | F79: 9,840 | G79: 10.77
B80: FH000119087 | C80: Fullhard | D80: 0.55 | E80: 955 | F80: 2,049 | G80: 2.15
B81: FH000119094 | C81: Fullhard | D81: 0.55 | E81: 960 | F81: 2,032 | G81: 2.12
B82: FH000119085 | C82: Fullhard | D82: 0.55 | E82: 1,005 | F82: 13,530 | G82: 13.46
B83: FH000119084 | C83: Fullhard | D83: 0.55 | E83: 1,037 | F83: 14,760 | G83: 14.23
B84: FH000119083 | C84: Fullhard | D84: 0.55 | E84: 1,257 | F84: 4,160 | G84: 3.31
B85: FH000119086 | C85: Fullhard | D85: 0.55 | E85: 1,257 | F85: 2,790 | G85: 2.22
B86: FH000119088 | C86: Fullhard | D86: 0.55 | E86: 1,257 | F86: 2,387 | G86: 1.90
B87: FH000119092 | C87: Fullhard | D87: 0.55 | E87: 1,500 | F87: 2,720 | G87: 1.81
B88: FH000119095 | C88: Fullhard | D88: 0.55 | E88: 1,500 | F88: 7,290 | G88: 4.86
B89: FH000119089 | C89: Fullhard | D89: 0.55 | E89: 1,534 | F89: 4,759 | G89: 3.10
B90: FH000119096 | C90: Fullhard | D90: 0.56 | E90: 1,505 | F90: 3,447 | G90: 2.29
B91: FH000119097 | C91: Fullhard | D91: 0.57 | E91: 1,227 | F91: 6,034 | G91: 4.92
B92: FH000119098 | C92: Fullhard | D92: 0.60 | E92: 1,505 | F92: 4,260 | G92: =F92/E92 -> 2.83
B93: FH000119101 | C93: Fullhard | D93: 0.61 | E93: 1,156 | F93: 3,560 | G93: 3.08
B94: FH000119099 | C94: Fullhard | D94: 0.61 | E94: 1,255 | F94: 4,000 | G94: 3.19
B95: FH000119100 | C95: Fullhard | D95: 0.61 | E95: 1,505 | F95: 3,930 | G95: 2.61
B96: FH000119102 | C96: Fullhard | D96: 0.62 | E96: 1,506 | F96: 1,707 | G96: 1.13
B97: FH000119103 | C97: Fullhard | D97: 0.66 | E97: 1,224 | F97: 2,943 | G97: 2.40
B98: FH000119104 | C98: Fullhard | D98: 0.70 | E98: 1,254 | F98: 1,990 | G98: 1.59
B99: FH000119105 | C99: Fullhard | D99: 0.70 | E99: 1,257 | F99: 5,470 | G99: 4.35
B100: FH000119107 | C100: Fullhard | D100: 0.74 | E100: 1,257 | F100: 1,786 | G100: 1.42
B101: FH000119106 | C101: Fullhard | D101: 0.74 | E101: 1,260 | F101: 2,009 | G101: 1.59
B102: FH000119110 | C102: Fullhard | D102: 0.80 | E102: 1,005 | F102: 4,210 | G102: 4.19
B103: FH000119112 | C103: Fullhard | D103: 0.80 | E103: 1,073 | F103: 1,855 | G103: 1.73
B104: FH000119111 | C104: Fullhard | D104: 0.80 | E104: 1,255 | F104: 4,550 | G104: 3.63
B105: FH000119113 | C105: Fullhard | D105: 0.80 | E105: 1,505 | F105: 2,820 | G105: 1.87
B106: FH000119108 | C106: Fullhard | D106: 0.80 | E106: 1,507 | F106: 1,360 | G106: 0.90
B107: FH000119114 | C107: Fullhard | D107: 0.82 | E107: 1,517 | F107: 2,870 | G107: 1.89
B108: FH000119116 | C108: Fullhard | D108: 0.90 | E108: 1,265 | F108: 1,680 | G108: 1.33
B109: FH000119115 | C109: Fullhard | D109: 0.90 | E109: 1,505 | F109: 9,080 | G109: 6.03
B110: FH000119118 | C110: Fullhard | D110: 0.95 | E110: 1,475 | F110: 2,859 | G110: 1.94
B111: FH000119119 | C111: Fullhard | D111: 0.96 | E111: 950 | F111: 3,870 | G111: 4.07
B112: FH000119121 | C112: Fullhard | D112: 1.00 | E112: 963 | F112: 4,560 | G112: 4.74
B113: FH000119125 | C113: Fullhard | D113: 1.00 | E113: 1,005 | F113: 2,910 | G113: 2.90
B114: FH000119123 | C114: Fullhard | D114: 1.00 | E114: 1,150 | F114: 5,802 | G114: 5.05
B115: FH000119120 | C115: Fullhard | D115: 1.00 | E115: 1,255 | F115: 6,740 | G115: 5.37
B116: FH000119122 | C116: Fullhard | D116: 1.00 | E116: 1,505 | F116: 6,620 | G116: 4.40
B117: FH000119124 | C117: Fullhard | D117: 1.00 | E117: 1,505 | F117: 2,900 | G117: 1.93
B118: FH000119128 | C118: Fullhard | D118: 1.01 | E118: 1,236 | F118: 1,730 | G118: 1.40
B119: FH000119127 | C119: Fullhard | D119: 1.01 | E119: 1,255 | F119: 4,881 | G119: 3.89
B120: FH000119126 | C120: Fullhard | D120: 1.01 | E120: 1,357 | F120: 1,150 | G120: 0.85
B121: FH000119129 | C121: Fullhard | D121: 1.15 | E121: 1,517 | F121: 21,700 | G121: 14.30
B122: FH000119130 | C122: Fullhard | D122: 1.16 | E122: 1,227 | F122: 3,600 | G122: 2.93
B123: FH000119131 | C123: Fullhard | D123: 1.19 | E123: 1,507 | F123: 4,980 | G123: =F123/E123 -> 3.30
B124: FH000119132 | C124: Fullhard | D124: 1.21 | E124: 1,275 | F124: 3,540 | G124: 2.78
B125: FH000119133 | C125: Fullhard | D125: 1.26 | E125: 1,482 | F125: 6,400 | G125: 4.32
B126: FH000119134 | C126: Fullhard | D126: 1.30 | E126: 1,250 | F126: 2,300 | G126: 1.84
B127: FH000119139 | C127: Fullhard | D127: 1.50 | E127: 1,005 | F127: 1,782 | G127: 1.77
B128: FH000119142 | C128: Fullhard | D128: 1.50 | E128: 1,503 | F128: 3,700 | G128: 2.46
B129: FH000119137 | C129: Fullhard | D129: 1.50 | E129: 1,504 | F129: 4,300 | G129: 2.86
B130: FH000119138 | C130: Fullhard | D130: 1.50 | E130: 1,505 | F130: 4,880 | G130: 3.24
B131: FH000119140 | C131: Fullhard | D131: 1.50 | E131: 1,505 | F131: 3,420 | G131: 2.27
B132: FH000119143 | C132: Fullhard | D132: 1.50 | E132: 1,505 | F132: 4,037 | G132: 2.68
B133: FH000119144 | C133: Fullhard | D133: 1.50 | E133: 1,515 | F133: 4,957 | G133: 3.27
B134: FH000119145 | C134: Fullhard | D134: 1.51 | E134: 1,485 | F134: 1,850 | G134: 1.25
B135: FH000119153 | C135: Fullhard | D135: 1.52 | E135: 1,255 | F135: 3,230 | G135: 2.57
B136: FH000119149 | C136: Fullhard | D136: 1.52 | E136: 1,480 | F136: 5,245 | G136: 3.54
B137: FH000119147 | C137: Fullhard | D137: 1.52 | E137: 1,500 | F137: 3,930 | G137: 2.62
B138: FH000119148 | C138: Fullhard | D138: 1.52 | E138: 1,500 | F138: 5,560 | G138: 3.71
B139: FH000119150 | C139: Fullhard | D139: 1.52 | E139: 1,500 | F139: 3,820 | G139: 2.55
B140: FH000119151 | C140: Fullhard | D140: 1.52 | E140: 1,500 | F140: 8,000 | G140: 5.33
B141: FH000119146 | C141: Fullhard | D141: 1.52 | E141: 1,510 | F141: 4,820 | G141: 3.19
B142: FH000119152 | C142: Fullhard | D142: 1.52 | E142: 1,515 | F142: 8,000 | G142: 5.28
B143: FH000119154 | C143: Fullhard | D143: 1.54 | E143: 1,505 | F143: 3,060 | G143: 2.03
B144: FH000119155 | C144: Fullhard | D144: 1.55 | E144: 1,380 | F144: 6,476 | G144: 4.69
B145: FH000119156 | C145: Fullhard | D145: 1.76 | E145: 1,515 | F145: 1,900 | G145: 1.25
B146: FH000119157 | C146: Fullhard | D146: 1.78 | E146: 1,505 | F146: 4,830 | G146: 3.21
B147: FH000119158 | C147: Fullhard | D147: 1.80 | E147: 1,230 | F147: 3,435 | G147: 2.79
B148: FH000119159 | C148: Fullhard | D148: 1.85 | E148: 1,227 | F148: 2,590 | G148: 2.11
B149: FH000119160 | C149: Fullhard | D149: 1.86 | E149: 1,250 | F149: 1,920 | G149: 1.54
B150: FH000119161 | C150: Fullhard | D150: 1.98 | E150: 1,500 | F150: 4,000 | G150: 2.67
B151: FH000119162 | C151: Fullhard | D151: 2.00 | E151: 1,255 | F151: 3,060 | G151: 2.44
B152: FH000119163 | C152: Fullhard | D152: 2.01 | E152: 1,523 | F152: 4,680 | G152: 3.07
B153: FH000119164 | C153: Fullhard | D153: 2.02 | E153: 1,506 | F153: 2,750 | G153: 1.83
B154: FH000119165 | C154: Fullhard | D154: 2.04 | E154: 1,504 | F154: 7,700 | G154: 5.12
B155: FH000119166 | C155: Fullhard | D155: 2.04 | E155: 1,513 | F155: 2,578 | G155: =F155/E155 -> 1.70
B156: FH000119167 | C156: Fullhard | D156: 2.09 | E156: 1,435 | F156: 1,800 | G156: 1.25
B157: FH000119168 | C157: Fullhard | D157: 2.32 | E157: 1,227 | F157: 2,930 | G157: 2.39
B158: FH000119169 | C158: Fullhard | D158: 2.35 | E158: 1,265 | F158: 4,040 | G158: 3.19
B159: FH000119171 | C159: Fullhard | D159: 2.50 | E159: 1,250 | F159: 9,484 | G159: 7.59
B160: FH000119170 | C160: Fullhard | D160: 2.50 | E160: 1,480 | F160: 6,940 | G160: 4.69
B161: FH000119172 | C161: Fullhard | D161: 2.50 | E161: 1,515 | F161: 4,970 | G161: 3.28
B162: FH000119173 | C162: Fullhard | D162: 2.56 | E162: 1,500 | F162: 3,910 | G162: 2.61
B163: FH000119174 | C163: Fullhard | D163: 2.75 | E163: 1,500 | F163: 3,900 | G163: 2.60
B164: FH000119175 | C164: Fullhard | D164: 2.76 | E164: 1,500 | F164: 14,200 | G164: 9.47
B165: FH000119176 | C165: Fullhard | D165: 2.84 | E165: 1,265 | F165: 3,470 | G165: 2.74
B166: FH000119178 | C166: Fullhard | D166: 3.00 | E166: 1,255 | F166: 2,681 | G166: 2.14
B167: FH000119179 | C167: Fullhard | D167: 3.00 | E167: 1,255 | F167: 2,057 | G167: 1.64
B168: FH000119180 | C168: Fullhard | D168: 3.00 | E168: 1,255 | F168: 2,998 | G168: 2.39
B169: FH000119181 | C169: Fullhard | D169: 3.00 | E169: 1,255 | F169: 2,283 | G169: 1.82
B170: FH000119182 | C170: Fullhard | D170: 3.00 | E170: 1,255 | F170: 2,693 | G170: 2.15
B171: FH000119177 | C171: Fullhard | D171: 3.00 | E171: 1,275 | F171: 2,520 | G171: 1.98
B172: FH000119183 | C172: Fullhard | D172: 3.02 | E172: 1,504 | F172: 6,561 | G172: 4.36
F173: =SUBTOTAL(9,F3:F172) -> 731,299

Sheet 20250416 (hidden)
E1: Marcegaglia | Gazoldo | I1: 2025-04-03
B2: Partita | C2: ID | D2: ID | E2: Categoria | F2: Grado | G2: Spessore (mm) | H2: Larghezza (mm) | I2: Peso (kg) | J2: kg / mm | K2: Pezzi | L2: Commento | M2: GSM | N2: SID | O2: SF | P2: FM
B3: 25H8003409 | C3: SC000416001 | D3: 1 | E3: Laminato a freddo | F3: DC04C490 | G3: 0.78 | H3: 406.00 | I3: 1,796 | J3: =I3/K3/H3 -> 4.42 | K3: 1 | M3: =IFERROR(VLOOKUP(C3,#REF!,6,FALSE),"") ->  | N3: =IFERROR(VLOOKUP(C3,#REF!,6,FALSE),"") ->  | P3: =IFERROR(VLOOKUP(C3,#REF!,6,FALSE),"") -> 
B4: 25H8003408 | C4: SC000416002 | D4: 2 | E4: Laminato a freddo | F4: DC04C490 | G4: 0.78 | H4: 406.00 | I4: 1,796 | J4: 4.42 | K4: 1 | M4: =IFERROR(VLOOKUP(C4,#REF!,6,FALSE),"") ->  | N4: =IFERROR(VLOOKUP(C4,#REF!,6,FALSE),"") ->  | P4: =IFERROR(VLOOKUP(C4,#REF!,6,FALSE),"") -> 
B5: 25H8003407 | C5: SC000416003 | D5: 3 | E5: Laminato a freddo | F5: DC04C490 | G5: 0.78 | H5: 440.00 | I5: 1,946 | J5: 4.42 | K5: 1 | M5: =IFERROR(VLOOKUP(C5,#REF!,6,FALSE),"") ->  | N5: =IFERROR(VLOOKUP(C5,#REF!,6,FALSE),"") ->  | P5: =IFERROR(VLOOKUP(C5,#REF!,6,FALSE),"") -> 
B6: 24H8002600 | C6: SC000416004 | D6: 4 | E6: Decapato | F6: DD13 | G6: 3.50 | H6: 636.00 | I6: 6,850 | J6: 10.77 | K6: 1 | M6: =IFERROR(VLOOKUP(C6,#REF!,6,FALSE),"") ->  | N6: =IFERROR(VLOOKUP(C6,#REF!,6,FALSE),"") ->  | P6: =IFERROR(VLOOKUP(C6,#REF!,6,FALSE),"") -> 
B7: 24H6006508 | C7: SC000416005 | D7: 5 | E7: Decapato | F7: DD13 | G7: 6.50 | H7: 888.00 | I7: 6,430 | J7: 7.24 | K7: 1 | M7: =IFERROR(VLOOKUP(C7,#REF!,6,FALSE),"") ->  | N7: =IFERROR(VLOOKUP(C7,#REF!,6,FALSE),"") ->  | P7: =IFERROR(VLOOKUP(C7,#REF!,6,FALSE),"") -> 
B8: 25H6001459 | C8: SC000416006 | D8: 6 | E8: Decapato | F8: DD13 | G8: 6.50 | H8: 888.00 | I8: 5,666 | J8: 6.38 | K8: 1 | M8: =IFERROR(VLOOKUP(C8,#REF!,6,FALSE),"") ->  | N8: =IFERROR(VLOOKUP(C8,#REF!,6,FALSE),"") ->  | P8: =IFERROR(VLOOKUP(C8,#REF!,6,FALSE),"") -> 
B9: 24H6006523 | C9: SC000416007 | D9: 7 | E9: Decapato | F9: DD13 | G9: 6.99 | H9: 835.00 | I9: 5,328 | J9: 6.38 | K9: 1 | M9: =IFERROR(VLOOKUP(C9,#REF!,6,FALSE),"") ->  | N9: =IFERROR(VLOOKUP(C9,#REF!,6,FALSE),"") ->  | P9: =IFERROR(VLOOKUP(C9,#REF!,6,FALSE),"") -> 
B10: 23AW023191 | C10: SC000416008 | D10: 8 | E10: Laminato a freddo | F10: DC04 | G10: 3.00 | H10: 417.00 | I10: 5,840 | J10: 14.00 | K10: 1 | M10: =IFERROR(VLOOKUP(C10,#REF!,6,FALSE),"") ->  | N10: =IFERROR(VLOOKUP(C10,#REF!,6,FALSE),"") ->  | P10: =IFERROR(VLOOKUP(C10,#REF!,6,FALSE),"") -> 
B11: 24LU03**** | C11: SC000416009 | D11: 9 | E11: Elettro-zincato | F11: DC01+ZE0/7,5 | G11: 1.87 | H11: 450.00 | I11: 6,418 | J11: 14.26 | K11: 1 | M11: =IFERROR(VLOOKUP(C11,#REF!,6,FALSE),"") ->  | N11: =IFERROR(VLOOKUP(C11,#REF!,6,FALSE),"") ->  | P11: =IFERROR(VLOOKUP(C11,#REF!,6,FALSE),"") -> 
B12: 25H6002255 | C12: SC000416010 | D12: 10 | E12: Decapato | F12: DD13 | G12: 4.50 | H12: 240.00 | I12: 2,669 | J12: 11.12 | K12: 1 | M12: =IFERROR(VLOOKUP(C12,#REF!,6,FALSE),"") ->  | N12: =IFERROR(VLOOKUP(C12,#REF!,6,FALSE),"") ->  | P12: =IFERROR(VLOOKUP(C12,#REF!,6,FALSE),"") -> 
B13: 25H6002252 | C13: SC000416011 | D13: 11 | E13: Decapato | F13: DD13 | G13: 4.50 | H13: 240.00 | I13: 2,585 | J13: 10.77 | K13: 1 | M13: =IFERROR(VLOOKUP(C13,#REF!,6,FALSE),"") ->  | N13: =IFERROR(VLOOKUP(C13,#REF!,6,FALSE),"") ->  | P13: =IFERROR(VLOOKUP(C13,#REF!,6,FALSE),"") -> 
B14: 25H6002413 | C14: SC000416012 | D14: 12 | E14: Decapato | F14: S500MC | G14: 4.00 | H14: 347.00 | I14: 3,183 | J14: 9.17 | K14: 1 | M14: =IFERROR(VLOOKUP(C14,#REF!,6,FALSE),"") ->  | N14: =IFERROR(VLOOKUP(C14,#REF!,6,FALSE),"") ->  | P14: =IFERROR(VLOOKUP(C14,#REF!,6,FALSE),"") -> 
B15: 24RB045866 | C15: SC000416013 | D15: 13 | E15: Zincato | F15: DX51D+Z275 MAC | G15: 2.50 | H15: 1,250.00 | I15: 21,400 | J15: 17.12 | K15: 1 | M15: =IFERROR(VLOOKUP(C15,#REF!,6,FALSE),"") ->  | N15: =IFERROR(VLOOKUP(C15,#REF!,6,FALSE),"") ->  | O15: =I15 -> 21,400 | P15: =IFERROR(VLOOKUP(C15,#REF!,6,FALSE),"") -> 
B16: 25H8003269 | C16: SC000416014 | D16: 14 | E16: Laminato a freddo - ricotto | F16: C45E | G16: 1.19 | H16: 520.00 | I16: 7,357 | J16: 14.15 | K16: 1 | M16: =IFERROR(VLOOKUP(C16,#REF!,6,FALSE),"") ->  | N16: =IFERROR(VLOOKUP(C16,#REF!,6,FALSE),"") ->  | P16: =IFERROR(VLOOKUP(C16,#REF!,6,FALSE),"") -> 
B17: 25H8003269 | C17: SC000416015 | D17: 15 | E17: Laminato a freddo - ricotto | F17: C45E | G17: 1.19 | H17: 620.00 | I17: 8,775 | J17: 14.15 | K17: 1 | M17: =IFERROR(VLOOKUP(C17,#REF!,6,FALSE),"") ->  | N17: =IFERROR(VLOOKUP(C17,#REF!,6,FALSE),"") ->  | P17: =IFERROR(VLOOKUP(C17,#REF!,6,FALSE),"") -> 
B18: 025G203384 | C18: SC000416016 | D18: 16 | E18: Laminato a freddo | F18: DC04 | G18: 0.71 | H18: 51.50 | I18: 3,482 | J18: 5.63 | K18: 12 | M18: =IFERROR(VLOOKUP(C18,#REF!,6,FALSE),"") ->  | N18: =IFERROR(VLOOKUP(C18,#REF!,6,FALSE),"") ->  | P18: =IFERROR(VLOOKUP(C18,#REF!,6,FALSE),"") -> 
B19: 25HB012042 | C19: SC000416017 | D19: 17 | E19: Laminato a freddo | F19: HC380LA | G19: 1.50 | H19: 245.00 | I19: 1,785 | J19: 7.29 | K19: 1 | M19: =IFERROR(VLOOKUP(C19,#REF!,6,FALSE),"") ->  | N19: =IFERROR(VLOOKUP(C19,#REF!,6,FALSE),"") ->  | P19: =IFERROR(VLOOKUP(C19,#REF!,6,FALSE),"") -> 
B20: 025G106718 | C20: SC000416018 | D20: 18 | E20: Laminato a freddo | F20: DC05 | G20: 0.59 | H20: 51.50 | I20: 324 | J20: 6.29 | K20: 1 | M20: =IFERROR(VLOOKUP(C20,#REF!,6,FALSE),"") ->  | N20: =IFERROR(VLOOKUP(C20,#REF!,6,FALSE),"") ->  | P20: =IFERROR(VLOOKUP(C20,#REF!,6,FALSE),"") -> 
B21: 25H8007788 | C21: SC000416019 | D21: 19 | E21: Laminato a freddo | F21: DC01 | G21: 2.91 | H21: 155.00 | I21: 978 | J21: 6.31 | K21: 1 | M21: =I21 -> 978 | N21: =IFERROR(VLOOKUP(C21,#REF!,6,FALSE),"") ->  | P21: =I21 -> 978
B22: 25H8007793 | C22: SC000416020 | D22: 19 | E22: Laminato a freddo | F22: DC01 | G22: 2.91 | H22: 155.00 | I22: 822 | J22: 5.30 | K22: 1 | M22: =I22 -> 822 | N22: =IFERROR(VLOOKUP(C22,#REF!,6,FALSE),"") ->  | P22: =I22 -> 822
B23: 25H8007783 | C23: SC000416021 | D23: 19 | E23: Laminato a freddo | F23: DC01 | G23: 2.91 | H23: 155.00 | I23: 802 | J23: 5.17 | K23: 1 | M23: =I23 -> 802 | N23: =IFERROR(VLOOKUP(C23,#REF!,6,FALSE),"") ->  | P23: =I23 -> 802
B24: 25H8007778 | C24: SC000416022 | D24: 19 | E24: Laminato a freddo | F24: DC01 | G24: 2.91 | H24: 155.00 | I24: 842 | J24: 5.43 | K24: 1 | M24: =I24 -> 842 | N24: =IFERROR(VLOOKUP(C24,#REF!,6,FALSE),"") ->  | P24: =I24 -> 842
B25: 25H8007718 | C25: SC000416023 | D25: 20 | E25: Laminato a freddo | F25: DC01 | G25: 2.91 | H25: 115.00 | I25: 723 | J25: 6.29 | K25: 1 | M25: =I25 -> 723 | N25: =IFERROR(VLOOKUP(C25,#REF!,6,FALSE),"") ->  | P25: =IFERROR(VLOOKUP(C25,#REF!,6,FALSE),"") -> 
B26: 25H8007723 | C26: SC000416024 | D26: 20 | E26: Laminato a freddo | F26: DC01 | G26: 2.91 | H26: 115.00 | I26: 747 | J26: 6.50 | K26: 1 | M26: 747 | N26: =IFERROR(VLOOKUP(C26,#REF!,6,FALSE),"") ->  | P26: =IFERROR(VLOOKUP(C26,#REF!,6,FALSE),"") -> 
B27: 25H8007713 | C27: SC000416025 | D27: 20 | E27: Laminato a freddo | F27: DC01 | G27: 2.91 | H27: 115.00 | I27: 755 | J27: 6.57 | K27: 1 | M27: 755 | N27: =IFERROR(VLOOKUP(C27,#REF!,6,FALSE),"") ->  | P27: =IFERROR(VLOOKUP(C27,#REF!,6,FALSE),"") -> 
B28: 25H8007728 | C28: SC000416026 | D28: 20 | E28: Laminato a freddo | F28: DC01 | G28: 2.91 | H28: 115.00 | I28: 804 | J28: 6.99 | K28: 1 | M28: 804 | N28: =IFERROR(VLOOKUP(C28,#REF!,6,FALSE),"") ->  | P28: =IFERROR(VLOOKUP(C28,#REF!,6,FALSE),"") -> 
B29: 25H8007758 | C29: SC000416027 | D29: 21 | E29: Laminato a freddo | F29: DC01 | G29: 2.91 | H29: 155.00 | I29: 914 | J29: 5.90 | K29: 1 | M29: 914 | N29: =IFERROR(VLOOKUP(C29,#REF!,6,FALSE),"") ->  | P29: =M29 -> 914
B30: 25H8007798 | C30: SC000416028 | D30: 21 | E30: Laminato a freddo | F30: DC01 | G30: 2.91 | H30: 155.00 | I30: 914 | J30: 5.90 | K30: 1 | M30: 914 | N30: =IFERROR(VLOOKUP(C30,#REF!,6,FALSE),"") ->  | P30: =M30 -> 914
B31: 25H8007763 | C31: SC000416029 | D31: 21 | E31: Laminato a freddo | F31: DC01 | G31: 2.91 | H31: 155.00 | I31: 914 | J31: 5.90 | K31: 1 | M31: 914 | N31: =IFERROR(VLOOKUP(C31,#REF!,6,FALSE),"") ->  | P31: =M31 -> 914
B32: 25H8007753 | C32: SC000416030 | D32: 21 | E32: Laminato a freddo | F32: DC01 | G32: 2.91 | H32: 155.00 | I32: 914 | J32: 5.90 | K32: 1 | M32: 914 | N32: =IFERROR(VLOOKUP(C32,#REF!,6,FALSE),"") ->  | P32: =M32 -> 914
B33: 25H8007748 | C33: SC000416031 | D33: 22 | E33: Laminato a freddo | F33: DC01 | G33: 2.91 | H33: 115.00 | I33: 838 | J33: 7.29 | K33: 1 | M33: 838 | N33: =IFERROR(VLOOKUP(C33,#REF!,6,FALSE),"") ->  | P33: =IFERROR(VLOOKUP(C33,#REF!,6,FALSE),"") -> 
B34: 25H8007743 | C34: SC000416032 | D34: 22 | E34: Laminato a freddo | F34: DC01 | G34: 2.91 | H34: 115.00 | I34: 924 | J34: 8.03 | K34: 1 | M34: 924 | N34: =IFERROR(VLOOKUP(C34,#REF!,6,FALSE),"") ->  | P34: =IFERROR(VLOOKUP(C34,#REF!,6,FALSE),"") -> 
B35: 25H8007738 | C35: SC000416033 | D35: 22 | E35: Laminato a freddo | F35: DC01 | G35: 2.91 | H35: 115.00 | I35: 771 | J35: 6.70 | K35: 1 | M35: 771 | N35: =IFERROR(VLOOKUP(C35,#REF!,6,FALSE),"") ->  | P35: =IFERROR(VLOOKUP(C35,#REF!,6,FALSE),"") -> 
B36: 25H8007733 | C36: SC000416034 | D36: 22 | E36: Laminato a freddo | F36: DC01 | G36: 2.91 | H36: 115.00 | I36: 729 | J36: 6.34 | K36: 1 | M36: 729 | N36: =IFERROR(VLOOKUP(C36,#REF!,6,FALSE),"") ->  | P36: =IFERROR(VLOOKUP(C36,#REF!,6,FALSE),"") -> 
B37: 25H8008840 | C37: SC000416035 | D37: 23 | E37: Laminato a freddo | F37: DC05 | G37: 0.50 | H37: 76.00 | I37: 900 | J37: 11.84 | K37: 1 | M37: =IFERROR(VLOOKUP(C37,#REF!,6,FALSE),"") ->  | N37: =IFERROR(VLOOKUP(C37,#REF!,6,FALSE),"") ->  | P37: =IFERROR(VLOOKUP(C37,#REF!,6,FALSE),"") -> 
B38: 25H8008502 | C38: SC000416036 | D38: 24 | E38: Laminato a freddo | F38: P05 | G38: 1.18 | H38: 91.00 | I38: 791 | J38: 8.69 | K38: 1 | M38: =IFERROR(VLOOKUP(C38,#REF!,6,FALSE),"") ->  | N38: =IFERROR(VLOOKUP(C38,#REF!,6,FALSE),"") ->  | P38: =IFERROR(VLOOKUP(C38,#REF!,6,FALSE),"") -> 
B39: 25H8008503 | C39: SC000416037 | D39: 24 | E39: Laminato a freddo | F39: P05 | G39: 1.18 | H39: 91.00 | I39: 805 | J39: 8.85 | K39: 1 | M39: =IFERROR(VLOOKUP(C39,#REF!,6,FALSE),"") ->  | N39: =IFERROR(VLOOKUP(C39,#REF!,6,FALSE),"") ->  | P39: =IFERROR(VLOOKUP(C39,#REF!,6,FALSE),"") -> 
B40: 25H8008515 | C40: SC000416038 | D40: 24 | E40: Laminato a freddo | F40: P05 | G40: 1.18 | H40: 91.00 | I40: 805 | J40: 8.85 | K40: 1 | M40: =IFERROR(VLOOKUP(C40,#REF!,6,FALSE),"") ->  | N40: =IFERROR(VLOOKUP(C40,#REF!,6,FALSE),"") ->  | P40: =IFERROR(VLOOKUP(C40,#REF!,6,FALSE),"") -> 
B41: 25H8008490 | C41: SC000416039 | D41: 24 | E41: Laminato a freddo | F41: P05 | G41: 1.18 | H41: 91.00 | I41: 791 | J41: 8.69 | K41: 1 | M41: =IFERROR(VLOOKUP(C41,#REF!,6,FALSE),"") ->  | N41: =IFERROR(VLOOKUP(C41,#REF!,6,FALSE),"") ->  | P41: =IFERROR(VLOOKUP(C41,#REF!,6,FALSE),"") -> 
B42: 25H8008464 | C42: SC000416040 | D42: 25 | E42: Laminato a freddo | F42: P05 | G42: 1.18 | H42: 91.00 | I42: 798 | J42: 8.77 | K42: 1 | M42: =IFERROR(VLOOKUP(C42,#REF!,6,FALSE),"") ->  | N42: =IFERROR(VLOOKUP(C42,#REF!,6,FALSE),"") ->  | P42: =IFERROR(VLOOKUP(C42,#REF!,6,FALSE),"") -> 
B43: 25H8008476 | C43: SC000416041 | D43: 25 | E43: Laminato a freddo | F43: P05 | G43: 1.18 | H43: 91.00 | I43: 798 | J43: 8.77 | K43: 1 | M43: =IFERROR(VLOOKUP(C43,#REF!,6,FALSE),"") ->  | N43: =IFERROR(VLOOKUP(C43,#REF!,6,FALSE),"") ->  | P43: =IFERROR(VLOOKUP(C43,#REF!,6,FALSE),"") -> 
B44: 25H8008477 | C44: SC000416042 | D44: 25 | E44: Laminato a freddo | F44: P05 | G44: 1.18 | H44: 91.00 | I44: 805 | J44: 8.85 | K44: 1 | M44: =IFERROR(VLOOKUP(C44,#REF!,6,FALSE),"") ->  | N44: =IFERROR(VLOOKUP(C44,#REF!,6,FALSE),"") ->  | P44: =IFERROR(VLOOKUP(C44,#REF!,6,FALSE),"") -> 
B45: 25H8008489 | C45: SC000416043 | D45: 25 | E45: Laminato a freddo | F45: P05 | G45: 1.18 | H45: 91.00 | I45: 805 | J45: 8.85 | K45: 1 | M45: =IFERROR(VLOOKUP(C45,#REF!,6,FALSE),"") ->  | N45: =IFERROR(VLOOKUP(C45,#REF!,6,FALSE),"") ->  | P45: =IFERROR(VLOOKUP(C45,#REF!,6,FALSE),"") -> 
B46: 25H8008508 | C46: SC000416044 | D46: 26 | E46: Laminato a freddo | F46: P05 | G46: 1.20 | H46: 120.00 | I46: 1,062 | J46: 8.85 | K46: 1 | M46: =IFERROR(VLOOKUP(C46,#REF!,6,FALSE),"") ->  | N46: =IFERROR(VLOOKUP(C46,#REF!,6,FALSE),"") ->  | P46: =IFERROR(VLOOKUP(C46,#REF!,6,FALSE),"") -> 
B47: 25H8008509 | C47: SC000416045 | D47: 26 | E47: Laminato a freddo | F47: P05 | G47: 1.20 | H47: 120.00 | I47: 1,062 | J47: 8.85 | K47: 1 | M47: =IFERROR(VLOOKUP(C47,#REF!,6,FALSE),"") ->  | N47: =IFERROR(VLOOKUP(C47,#REF!,6,FALSE),"") ->  | P47: =IFERROR(VLOOKUP(C47,#REF!,6,FALSE),"") -> 
B48: *** | C48: SC000416046 | D48: 26 | E48: Laminato a freddo | F48: P05 | G48: 1.20 | H48: 120.00 | I48: 1,062 | J48: 8.85 | K48: 1 | M48: =IFERROR(VLOOKUP(C48,#REF!,6,FALSE),"") ->  | N48: =IFERROR(VLOOKUP(C48,#REF!,6,FALSE),"") ->  | P48: =IFERROR(VLOOKUP(C48,#REF!,6,FALSE),"") -> 
B49: *** | C49: SC000416047 | D49: 26 | E49: Laminato a freddo | F49: P05 | G49: 1.20 | H49: 120.00 | I49: 1,062 | J49: 8.85 | K49: 1 | M49: =IFERROR(VLOOKUP(C49,#REF!,6,FALSE),"") ->  | N49: =IFERROR(VLOOKUP(C49,#REF!,6,FALSE),"") ->  | P49: =IFERROR(VLOOKUP(C49,#REF!,6,FALSE),"") -> 
B50: 025G200396 | C50: SC000416048 | D50: 27 | E50: Laminato a freddo | F50: DC01 | G50: 1.00 | H50: 91.00 | I50: 1,492 | J50: 8.20 | K50: 2 | M50: =IFERROR(VLOOKUP(C50,#REF!,6,FALSE),"") ->  | N50: =IFERROR(VLOOKUP(C50,#REF!,6,FALSE),"") ->  | P50: =IFERROR(VLOOKUP(C50,#REF!,6,FALSE),"") -> 
B51: 25H6002919 | C51: SC000416049 | D51: 28 | E51: Decapato | F51: DD13 | G51: 3.00 | H51: 120.00 | I51: 872 | J51: 7.27 | K51: 1 | M51: =IFERROR(VLOOKUP(C51,#REF!,6,FALSE),"") ->  | N51: =IFERROR(VLOOKUP(C51,#REF!,6,FALSE),"") ->  | P51: =IFERROR(VLOOKUP(C51,#REF!,6,FALSE),"") -> 
B52: 24HB033208 | C52: SC000416050 | D52: 29 | E52: Laminato a freddo | F52: DC01 | G52: 1.00 | H52: 90.00 | I52: 1,065 | J52: 11.83 | K52: 1 | M52: =IFERROR(VLOOKUP(C52,#REF!,6,FALSE),"") ->  | N52: =IFERROR(VLOOKUP(C52,#REF!,6,FALSE),"") ->  | P52: =IFERROR(VLOOKUP(C52,#REF!,6,FALSE),"") -> 
B53: 24HB033220 | C53: SC000416051 | D53: 29 | E53: Laminato a freddo | F53: DC01 | G53: 1.00 | H53: 90.00 | I53: 1,065 | J53: 11.83 | K53: 1 | M53: =IFERROR(VLOOKUP(C53,#REF!,6,FALSE),"") ->  | N53: =IFERROR(VLOOKUP(C53,#REF!,6,FALSE),"") ->  | P53: =IFERROR(VLOOKUP(C53,#REF!,6,FALSE),"") -> 
B54: 024G211062 | C54: SC000416052 | D54: 30 | E54: Laminato a freddo | F54: HC340LA | G54: 0.81 | H54: 91.00 | I54: 1,432 | J54: 7.87 | K54: 2 | M54: =IFERROR(VLOOKUP(C54,#REF!,6,FALSE),"") ->  | N54: =IFERROR(VLOOKUP(C54,#REF!,6,FALSE),"") ->  | P54: =IFERROR(VLOOKUP(C54,#REF!,6,FALSE),"") -> 
B55: 24HB033222 | C55: SC000416053 | D55: 31 | E55: Laminato a freddo | F55: DC01 | G55: 1.00 | H55: 90.00 | I55: 1,065 | J55: 11.83 | K55: 1 | M55: =IFERROR(VLOOKUP(C55,#REF!,6,FALSE),"") ->  | N55: =IFERROR(VLOOKUP(C55,#REF!,6,FALSE),"") ->  | P55: =IFERROR(VLOOKUP(C55,#REF!,6,FALSE),"") -> 
B56: 24HB033221 | C56: SC000416054 | D56: 31 | E56: Laminato a freddo | F56: DC01 | G56: 1.00 | H56: 90.00 | I56: 1,065 | J56: 11.83 | K56: 1 | M56: =IFERROR(VLOOKUP(C56,#REF!,6,FALSE),"") ->  | N56: =IFERROR(VLOOKUP(C56,#REF!,6,FALSE),"") ->  | P56: =IFERROR(VLOOKUP(C56,#REF!,6,FALSE),"") -> 
B57: 25H8003226 | C57: SC000416055 | D57: 32 | E57: Laminato a freddo | F57: DC01 | G57: 1.01 | H57: 65.00 | I57: 1,117 | J57: 17.18 | K57: 1 | M57: =IFERROR(VLOOKUP(C57,#REF!,6,FALSE),"") ->  | N57: =IFERROR(VLOOKUP(C57,#REF!,6,FALSE),"") ->  | P57: =IFERROR(VLOOKUP(C57,#REF!,6,FALSE),"") -> 
B58: 25H8003231 | C58: SC000416056 | D58: 32 | E58: Laminato a freddo | F58: DC01 | G58: 1.01 | H58: 65.00 | I58: 1,021 | J58: 15.71 | K58: 1 | M58: =IFERROR(VLOOKUP(C58,#REF!,6,FALSE),"") ->  | N58: =IFERROR(VLOOKUP(C58,#REF!,6,FALSE),"") ->  | P58: =IFERROR(VLOOKUP(C58,#REF!,6,FALSE),"") -> 
B59: 025G201950 | C59: SC000416057 | D59: 33 | E59: Laminato a freddo | F59: DC01 | G59: 0.91 | H59: 81.00 | I59: 2,264 | J59: 4.66 | K59: 6 | M59: =IFERROR(VLOOKUP(C59,#REF!,6,FALSE),"") ->  | N59: =IFERROR(VLOOKUP(C59,#REF!,6,FALSE),"") ->  | P59: =IFERROR(VLOOKUP(C59,#REF!,6,FALSE),"") -> 
B60: 025G201964 | C60: SC000416058 | D60: 34 | E60: Laminato a freddo | F60: DC03 | G60: 1.51 | H60: 79.00 | I60: 1,364 | J60: 8.63 | K60: 2 | M60: =IFERROR(VLOOKUP(C60,#REF!,6,FALSE),"") ->  | N60: =IFERROR(VLOOKUP(C60,#REF!,6,FALSE),"") ->  | P60: =IFERROR(VLOOKUP(C60,#REF!,6,FALSE),"") -> 
B61: 025G202219 | C61: SC000416059 | D61: 35 | E61: Laminato a freddo | F61: DC01 | G61: 1.01 | H61: 81.00 | I61: 1,422 | J61: 8.78 | K61: 2 | M61: =IFERROR(VLOOKUP(C61,#REF!,6,FALSE),"") ->  | N61: =IFERROR(VLOOKUP(C61,#REF!,6,FALSE),"") ->  | P61: =IFERROR(VLOOKUP(C61,#REF!,6,FALSE),"") -> 
B62: 025B203701 | C62: SC000416060 | D62: 36 | E62: Laminato a freddo | F62: DC04 | G62: 0.75 | H62: 81.00 | I62: 1,606 | J62: 9.91 | K62: 2 | M62: =IFERROR(VLOOKUP(C62,#REF!,6,FALSE),"") ->  | N62: =IFERROR(VLOOKUP(C62,#REF!,6,FALSE),"") ->  | P62: =IFERROR(VLOOKUP(C62,#REF!,6,FALSE),"") -> 
B63: 025B101398 | C63: SC000416061 | D63: 37 | E63: Laminato a freddo | F63: DC01C390 | G63: 1.50 | H63: 99.00 | I63: 2,228 | J63: 3.75 | K63: 6 | M63: =IFERROR(VLOOKUP(C63,#REF!,6,FALSE),"") ->  | N63: =IFERROR(VLOOKUP(C63,#REF!,6,FALSE),"") ->  | P63: =IFERROR(VLOOKUP(C63,#REF!,6,FALSE),"") -> 
B64: 25HB006880 | C64: SC000416062 | D64: 38 | E64: Laminato a freddo | F64: DC04 | G64: 1.37 | H64: 195.00 | I64: 862 | J64: 4.42 | K64: 1 | M64: =IFERROR(VLOOKUP(C64,#REF!,6,FALSE),"") ->  | N64: =IFERROR(VLOOKUP(C64,#REF!,6,FALSE),"") ->  | P64: =IFERROR(VLOOKUP(C64,#REF!,6,FALSE),"") -> 
B65: 25HB006881 | C65: SC000416063 | D65: 38 | E65: Laminato a freddo | F65: DC04 | G65: 1.37 | H65: 195.00 | I65: 862 | J65: 4.42 | K65: 1 | M65: =IFERROR(VLOOKUP(C65,#REF!,6,FALSE),"") ->  | N65: =IFERROR(VLOOKUP(C65,#REF!,6,FALSE),"") ->  | P65: =IFERROR(VLOOKUP(C65,#REF!,6,FALSE),"") -> 
B66: 25HB006876 | C66: SC000416064 | D66: 38 | E66: Laminato a freddo | F66: DC04 | G66: 1.37 | H66: 195.00 | I66: 862 | J66: 4.42 | K66: 1 | M66: =IFERROR(VLOOKUP(C66,#REF!,6,FALSE),"") ->  | N66: =IFERROR(VLOOKUP(C66,#REF!,6,FALSE),"") ->  | P66: =IFERROR(VLOOKUP(C66,#REF!,6,FALSE),"") -> 
B67: 025G106350 | C67: SC000416065 | D67: 39 | E67: Laminato a freddo | F67: DC03 | G67: 1.36 | H67: 93.00 | I67: 1,444 | J67: =I67/K67/H67 -> 5.18 | K67: 3 | M67: =IFERROR(VLOOKUP(C67,#REF!,6,FALSE),"") ->  | N67: =IFERROR(VLOOKUP(C67,#REF!,6,FALSE),"") ->  | P67: =IFERROR(VLOOKUP(C67,#REF!,6,FALSE),"") -> 
B68: 025B202898 | C68: SC000416066 | D68: 40 | E68: Laminato a freddo | F68: P05 | G68: 1.19 | H68: 91.00 | I68: 3,162 | J68: 6.95 | K68: 5 | M68: =IFERROR(VLOOKUP(C68,#REF!,6,FALSE),"") ->  | N68: =IFERROR(VLOOKUP(C68,#REF!,6,FALSE),"") ->  | P68: =IFERROR(VLOOKUP(C68,#REF!,6,FALSE),"") -> 
B69: 25H8007390 | C69: SC000416067 | D69: 41 | E69: Laminato a freddo | F69: RAD1 | G69: 1.21 | H69: 112.00 | I69: 379 | J69: 3.38 | K69: 1 | M69: =IFERROR(VLOOKUP(C69,#REF!,6,FALSE),"") ->  | N69: =IFERROR(VLOOKUP(C69,#REF!,6,FALSE),"") ->  | P69: =IFERROR(VLOOKUP(C69,#REF!,6,FALSE),"") -> 
B70: 25H8007389 | C70: SC000416068 | D70: 41 | E70: Laminato a freddo | F70: RAD1 | G70: 1.21 | H70: 112.00 | I70: 379 | J70: 3.38 | K70: 1 | M70: =IFERROR(VLOOKUP(C70,#REF!,6,FALSE),"") ->  | N70: =IFERROR(VLOOKUP(C70,#REF!,6,FALSE),"") ->  | P70: =IFERROR(VLOOKUP(C70,#REF!,6,FALSE),"") -> 
B71: 25H8007382 | C71: SC000416069 | D71: 41 | E71: Laminato a freddo | F71: RAD1 | G71: 1.21 | H71: 112.00 | I71: 385 | J71: 3.44 | K71: 1 | M71: =IFERROR(VLOOKUP(C71,#REF!,6,FALSE),"") ->  | N71: =IFERROR(VLOOKUP(C71,#REF!,6,FALSE),"") ->  | P71: =IFERROR(VLOOKUP(C71,#REF!,6,FALSE),"") -> 
B72: 25H8007381 | C72: SC000416070 | D72: 41 | E72: Laminato a freddo | F72: RAD1 | G72: 1.21 | H72: 112.00 | I72: 385 | J72: 3.44 | K72: 1 | M72: =IFERROR(VLOOKUP(C72,#REF!,6,FALSE),"") ->  | N72: =IFERROR(VLOOKUP(C72,#REF!,6,FALSE),"") ->  | P72: =IFERROR(VLOOKUP(C72,#REF!,6,FALSE),"") -> 
B73: 25H8007394 | C73: SC000416071 | D73: 41 | E73: Laminato a freddo | F73: RAD1 | G73: 1.21 | H73: 112.00 | I73: 442 | J73: 3.95 | K73: 1 | M73: =IFERROR(VLOOKUP(C73,#REF!,6,FALSE),"") ->  | N73: =IFERROR(VLOOKUP(C73,#REF!,6,FALSE),"") ->  | P73: =IFERROR(VLOOKUP(C73,#REF!,6,FALSE),"") -> 
B74: 025G104545 | C74: SC000416072 | D74: 42 | E74: Laminato a freddo | F74: DC04 | G74: 1.21 | H74: 81.00 | I74: 1,522 | J74: 6.26 | K74: 3 | M74: =IFERROR(VLOOKUP(C74,#REF!,6,FALSE),"") ->  | N74: =IFERROR(VLOOKUP(C74,#REF!,6,FALSE),"") ->  | P74: =IFERROR(VLOOKUP(C74,#REF!,6,FALSE),"") -> 
B75: 025G201377 | C75: SC000416073 | D75: 43 | E75: Laminato a freddo | F75: P05 | G75: 1.18 | H75: 91.00 | I75: 3,012 | J75: 8.27 | K75: 4 | M75: =IFERROR(VLOOKUP(C75,#REF!,6,FALSE),"") ->  | N75: =IFERROR(VLOOKUP(C75,#REF!,6,FALSE),"") ->  | P75: =IFERROR(VLOOKUP(C75,#REF!,6,FALSE),"") -> 
B76: 025G201363 | C76: SC000416074 | D76: 44 | E76: Laminato a freddo | F76: P05 | G76: 1.19 | H76: 91.00 | I76: 3,180 | J76: 8.74 | K76: 4 | M76: =IFERROR(VLOOKUP(C76,#REF!,6,FALSE),"") ->  | N76: =IFERROR(VLOOKUP(C76,#REF!,6,FALSE),"") ->  | P76: =IFERROR(VLOOKUP(C76,#REF!,6,FALSE),"") -> 
B77: 024G217636 | C77: SC000416075 | D77: 45 | E77: Laminato a freddo | F77: P05 | G77: 1.18 | H77: 91.00 | I77: 3,468 | J77: 9.53 | K77: 4 | M77: =IFERROR(VLOOKUP(C77,#REF!,6,FALSE),"") ->  | N77: =IFERROR(VLOOKUP(C77,#REF!,6,FALSE),"") ->  | P77: =IFERROR(VLOOKUP(C77,#REF!,6,FALSE),"") -> 
B78: 024G217637 | C78: SC000416076 | D78: 46 | E78: Laminato a freddo | F78: P05 | G78: 1.18 | H78: 91.00 | I78: 3,490 | J78: 9.59 | K78: 4 | M78: =IFERROR(VLOOKUP(C78,#REF!,6,FALSE),"") ->  | N78: =IFERROR(VLOOKUP(C78,#REF!,6,FALSE),"") ->  | P78: =IFERROR(VLOOKUP(C78,#REF!,6,FALSE),"") -> 
B79: 025G201349 | C79: SC000416077 | D79: 47 | E79: Laminato a freddo | F79: P05 | G79: 1.18 | H79: 91.00 | I79: 3,438 | J79: 9.45 | K79: 4 | M79: =IFERROR(VLOOKUP(C79,#REF!,6,FALSE),"") ->  | N79: =IFERROR(VLOOKUP(C79,#REF!,6,FALSE),"") ->  | P79: =IFERROR(VLOOKUP(C79,#REF!,6,FALSE),"") -> 
B80: 025G201356 | C80: SC000416078 | D80: 48 | E80: Laminato a freddo | F80: P05 | G80: 1.19 | H80: 91.00 | I80: 3,222 | J80: 8.85 | K80: 4 | M80: =IFERROR(VLOOKUP(C80,#REF!,6,FALSE),"") ->  | N80: =IFERROR(VLOOKUP(C80,#REF!,6,FALSE),"") ->  | P80: =IFERROR(VLOOKUP(C80,#REF!,6,FALSE),"") -> 
B81: 025G200102 | C81: SC000416079 | D81: 49 | E81: Laminato a freddo | F81: P05 | G81: 1.18 | H81: 91.00 | I81: 1,168 | J81: 6.42 | K81: 2 | M81: =IFERROR(VLOOKUP(C81,#REF!,6,FALSE),"") ->  | N81: =IFERROR(VLOOKUP(C81,#REF!,6,FALSE),"") ->  | P81: =IFERROR(VLOOKUP(C81,#REF!,6,FALSE),"") -> 
B82: 025G200104 | C82: SC000416080 | D82: 50 | E82: Laminato a freddo | F82: P05 | G82: 1.18 | H82: 91.00 | I82: 3,480 | J82: 9.56 | K82: 4 | M82: =IFERROR(VLOOKUP(C82,#REF!,6,FALSE),"") ->  | N82: =IFERROR(VLOOKUP(C82,#REF!,6,FALSE),"") ->  | P82: =IFERROR(VLOOKUP(C82,#REF!,6,FALSE),"") -> 
B83: 024G217174 | C83: SC000416081 | D83: 51 | E83: Laminato a freddo | F83: P05 | G83: 1.19 | H83: 91.00 | I83: 2,648 | J83: 9.70 | K83: 3 | M83: =IFERROR(VLOOKUP(C83,#REF!,6,FALSE),"") ->  | N83: =IFERROR(VLOOKUP(C83,#REF!,6,FALSE),"") ->  | P83: =IFERROR(VLOOKUP(C83,#REF!,6,FALSE),"") -> 
B84: 024G217177 | C84: SC000416082 | D84: 52 | E84: Laminato a freddo | F84: P05 | G84: 1.19 | H84: 91.00 | I84: 2,542 | J84: 9.31 | K84: 3 | M84: =IFERROR(VLOOKUP(C84,#REF!,6,FALSE),"") ->  | N84: =IFERROR(VLOOKUP(C84,#REF!,6,FALSE),"") ->  | P84: =IFERROR(VLOOKUP(C84,#REF!,6,FALSE),"") -> 
B85: 025G200101 | C85: SC000416083 | D85: 53 | E85: Laminato a freddo | F85: P05 | G85: 1.18 | H85: 91.00 | I85: 3,270 | J85: 8.98 | K85: 4 | M85: =IFERROR(VLOOKUP(C85,#REF!,6,FALSE),"") ->  | N85: =IFERROR(VLOOKUP(C85,#REF!,6,FALSE),"") ->  | P85: =IFERROR(VLOOKUP(C85,#REF!,6,FALSE),"") -> 
B86: 025G200085 | C86: SC000416084 | D86: 54 | E86: Laminato a freddo | F86: P05 | G86: 1.18 | H86: 91.00 | I86: 4,376 | J86: 8.01 | K86: 6 | M86: =IFERROR(VLOOKUP(C86,#REF!,6,FALSE),"") ->  | N86: =IFERROR(VLOOKUP(C86,#REF!,6,FALSE),"") ->  | P86: =IFERROR(VLOOKUP(C86,#REF!,6,FALSE),"") -> 
B87: 024G217248 | C87: SC000416085 | D87: 55 | E87: Laminato a freddo | F87: P05 | G87: 1.18 | H87: 91.00 | I87: 2,122 | J87: 7.77 | K87: 3 | M87: =IFERROR(VLOOKUP(C87,#REF!,6,FALSE),"") ->  | N87: =IFERROR(VLOOKUP(C87,#REF!,6,FALSE),"") ->  | P87: =IFERROR(VLOOKUP(C87,#REF!,6,FALSE),"") -> 
B88: 024G217247 | C88: SC000416086 | D88: 56 | E88: Laminato a freddo | F88: P05 | G88: 1.18 | H88: 91.00 | I88: 2,024 | J88: 7.41 | K88: 3 | M88: =IFERROR(VLOOKUP(C88,#REF!,6,FALSE),"") ->  | N88: =IFERROR(VLOOKUP(C88,#REF!,6,FALSE),"") ->  | P88: =IFERROR(VLOOKUP(C88,#REF!,6,FALSE),"") -> 
B89: 024G217237 | C89: SC000416087 | D89: 57 | E89: Laminato a freddo | F89: P05 | G89: 1.17 | H89: 91.00 | I89: 2,786 | J89: 7.65 | K89: 4 | M89: =IFERROR(VLOOKUP(C89,#REF!,6,FALSE),"") ->  | N89: =IFERROR(VLOOKUP(C89,#REF!,6,FALSE),"") ->  | P89: =IFERROR(VLOOKUP(C89,#REF!,6,FALSE),"") -> 
B90: 025G200101 | C90: SC000416088 | D90: 58 | E90: Laminato a freddo | F90: P05 | G90: 1.18 | H90: 91.00 | I90: 3,270 | J90: 8.98 | K90: 4 | M90: =IFERROR(VLOOKUP(C90,#REF!,6,FALSE),"") ->  | N90: =IFERROR(VLOOKUP(C90,#REF!,6,FALSE),"") ->  | P90: =IFERROR(VLOOKUP(C90,#REF!,6,FALSE),"") -> 
B91: 025G107090 | C91: SC000416089 | D91: 59 | E91: Laminato a freddo | F91: DC05 | G91: 0.59 | H91: 51.50 | I91: 424 | J91: 8.23 | K91: 1 | M91: =IFERROR(VLOOKUP(C91,#REF!,6,FALSE),"") ->  | N91: =IFERROR(VLOOKUP(C91,#REF!,6,FALSE),"") ->  | P91: =IFERROR(VLOOKUP(C91,#REF!,6,FALSE),"") -> 
B92: 025G107094 | C92: SC000416090 | D92: 60 | E92: Laminato a freddo | F92: DC05 | G92: 0.59 | H92: 51.50 | I92: 448 | J92: 8.70 | K92: 1 | M92: =IFERROR(VLOOKUP(C92,#REF!,6,FALSE),"") ->  | N92: =IFERROR(VLOOKUP(C92,#REF!,6,FALSE),"") ->  | P92: =IFERROR(VLOOKUP(C92,#REF!,6,FALSE),"") -> 
B93: 24H8014153 | C93: SC000416091 | D93: 61 | E93: Laminato a freddo | F93: DC05 | G93: 1.34 | H93: 63.00 | I93: 376 | J93: 5.97 | K93: 1 | M93: =IFERROR(VLOOKUP(C93,#REF!,6,FALSE),"") ->  | N93: =IFERROR(VLOOKUP(C93,#REF!,6,FALSE),"") ->  | P93: =IFERROR(VLOOKUP(C93,#REF!,6,FALSE),"") -> 
B94: 24H8014140 | C94: SC000416092 | D94: 62 | E94: Laminato a freddo | F94: DC05 | G94: 1.34 | H94: 63.00 | I94: 351 | J94: 5.57 | K94: 1 | M94: =IFERROR(VLOOKUP(C94,#REF!,6,FALSE),"") ->  | N94: =IFERROR(VLOOKUP(C94,#REF!,6,FALSE),"") ->  | P94: =IFERROR(VLOOKUP(C94,#REF!,6,FALSE),"") -> 
B95: 24H8014127 | C95: SC000416093 | D95: 63 | E95: Laminato a freddo | F95: DC05 | G95: 1.34 | H95: 63.00 | I95: 385 | J95: 6.11 | K95: 1 | M95: =IFERROR(VLOOKUP(C95,#REF!,6,FALSE),"") ->  | N95: =IFERROR(VLOOKUP(C95,#REF!,6,FALSE),"") ->  | P95: =IFERROR(VLOOKUP(C95,#REF!,6,FALSE),"") -> 
B96: 24H80141** | C96: SC000416094 | D96: 64 | E96: Laminato a freddo | F96: DC05 | G96: 1.34 | H96: 63.00 | I96: 385 | J96: 6.11 | K96: 1 | M96: =IFERROR(VLOOKUP(C96,#REF!,6,FALSE),"") ->  | N96: =IFERROR(VLOOKUP(C96,#REF!,6,FALSE),"") ->  | P96: =IFERROR(VLOOKUP(C96,#REF!,6,FALSE),"") -> 
B97: 25H8009028 | C97: SC000416095 | D97: 65 | E97: Zincato | F97: DX51D+Z275 MAC | G97: 1.25 | H97: 49.00 | I97: 160 | J97: 3.27 | K97: 1 | M97: =IFERROR(VLOOKUP(C97,#REF!,6,FALSE),"") ->  | N97: =IFERROR(VLOOKUP(C97,#REF!,6,FALSE),"") ->  | P97: =IFERROR(VLOOKUP(C97,#REF!,6,FALSE),"") -> 
B98: 25H8009031 | C98: SC000416096 | D98: 65 | E98: Zincato | F98: DX51D+Z275 MAC | G98: 1.25 | H98: 49.00 | I98: 166 | J98: 3.39 | K98: 1 | M98: =IFERROR(VLOOKUP(C98,#REF!,6,FALSE),"") ->  | N98: =IFERROR(VLOOKUP(C98,#REF!,6,FALSE),"") ->  | P98: =IFERROR(VLOOKUP(C98,#REF!,6,FALSE),"") -> 
B99: 25H8009034 | C99: SC000416097 | D99: 65 | E99: Zincato | F99: DX51D+Z275 MAC | G99: 1.25 | H99: 49.00 | I99: 166 | J99: 3.39 | K99: 1 | M99: =IFERROR(VLOOKUP(C99,#REF!,6,FALSE),"") ->  | N99: =IFERROR(VLOOKUP(C99,#REF!,6,FALSE),"") ->  | P99: =IFERROR(VLOOKUP(C99,#REF!,6,FALSE),"") -> 
B100: 25H8008588 | C100: SC000416098 | D100: 66 | E100: Zincato | F100: S220GD+Z100 MBC | G100: 0.67 | H100: 74.00 | I100: 258 | J100: 3.49 | K100: 1 | M100: =IFERROR(VLOOKUP(C100,#REF!,6,FALSE),"") ->  | N100: =IFERROR(VLOOKUP(C100,#REF!,6,FALSE),"") ->  | P100: =IFERROR(VLOOKUP(C100,#REF!,6,FALSE),"") -> 
B101: 25H8008591 | C101: SC000416099 | D101: 66 | E101: Zincato | F101: S220GD+Z100 MBC | G101: 0.67 | H101: 74.00 | I101: 253 | J101: 3.42 | K101: 1 | M101: =IFERROR(VLOOKUP(C101,#REF!,6,FALSE),"") ->  | N101: =IFERROR(VLOOKUP(C101,#REF!,6,FALSE),"") ->  | P101: =IFERROR(VLOOKUP(C101,#REF!,6,FALSE),"") -> 
B102: 25H8008594 | C102: SC000416100 | D102: 66 | E102: Zincato | F102: S220GD+Z100 MBC | G102: 0.67 | H102: 74.00 | I102: 255 | J102: 3.45 | K102: 1 | M102: =IFERROR(VLOOKUP(C102,#REF!,6,FALSE),"") ->  | N102: =IFERROR(VLOOKUP(C102,#REF!,6,FALSE),"") ->  | P102: =IFERROR(VLOOKUP(C102,#REF!,6,FALSE),"") -> 
B103: 25H8008597 | C103: SC000416101 | D103: 66 | E103: Zincato | F103: S220GD+Z100 MBC | G103: 0.67 | H103: 74.00 | I103: 253 | J103: 3.42 | K103: 1 | M103: =IFERROR(VLOOKUP(C103,#REF!,6,FALSE),"") ->  | N103: =IFERROR(VLOOKUP(C103,#REF!,6,FALSE),"") ->  | P103: =IFERROR(VLOOKUP(C103,#REF!,6,FALSE),"") -> 
B104: 25H80085** | C104: SC000416102 | D104: 66 | E104: Zincato | F104: S220GD+Z100 MBC | G104: 0.67 | H104: 74.00 | I104: 253 | J104: 3.42 | K104: 1 | M104: =IFERROR(VLOOKUP(C104,#REF!,6,FALSE),"") ->  | N104: =IFERROR(VLOOKUP(C104,#REF!,6,FALSE),"") ->  | P104: =IFERROR(VLOOKUP(C104,#REF!,6,FALSE),"") -> 
B105: 025G105405 | C105: SC000416103 | D105: 67 | E105: Laminato a freddo | F105: DC01 | G105: 1.00 | H105: 59.00 | I105: 1,433 | J105: 6.07 | K105: 4 | M105: =IFERROR(VLOOKUP(C105,#REF!,6,FALSE),"") ->  | N105: =IFERROR(VLOOKUP(C105,#REF!,6,FALSE),"") ->  | P105: =IFERROR(VLOOKUP(C105,#REF!,6,FALSE),"") -> 
B106: 025G105430 | C106: SC000416104 | D106: 67 | E106: Laminato a freddo | F106: DC01 | G106: 1.00 | H106: 59.00 | I106: 1,401 | J106: 5.94 | K106: 4 | M106: =IFERROR(VLOOKUP(C106,#REF!,6,FALSE),"") ->  | N106: =IFERROR(VLOOKUP(C106,#REF!,6,FALSE),"") ->  | P106: =IFERROR(VLOOKUP(C106,#REF!,6,FALSE),"") -> 
B107: 025G105431 | C107: SC000416105 | D107: 67 | E107: Laminato a freddo | F107: DC01 | G107: 1.00 | H107: 81.00 | I107: 1,963 | J107: 6.06 | K107: 4 | M107: =IFERROR(VLOOKUP(C107,#REF!,6,FALSE),"") ->  | N107: =IFERROR(VLOOKUP(C107,#REF!,6,FALSE),"") ->  | P107: =IFERROR(VLOOKUP(C107,#REF!,6,FALSE),"") -> 
B108: 25HB012257 | C108: SC000416106 | D108: 68 | E108: Laminato a freddo | F108: DC05 | G108: 0.60 | H108: 80.00 | I108: 787 | J108: 9.84 | K108: 1 | M108: =IFERROR(VLOOKUP(C108,#REF!,6,FALSE),"") ->  | N108: =IFERROR(VLOOKUP(C108,#REF!,6,FALSE),"") ->  | P108: =IFERROR(VLOOKUP(C108,#REF!,6,FALSE),"") -> 
B109: 25HB002727 | C109: SC000416107 | D109: 69 | E109: Laminato a freddo | F109: DC05 | G109: 1.35 | H109: 91.00 | I109: 632 | J109: 6.95 | K109: 1 | M109: =IFERROR(VLOOKUP(C109,#REF!,6,FALSE),"") ->  | N109: =IFERROR(VLOOKUP(C109,#REF!,6,FALSE),"") ->  | P109: =IFERROR(VLOOKUP(C109,#REF!,6,FALSE),"") -> 
B110: 25HB002717 | C110: SC000416108 | D110: 69 | E110: Laminato a freddo | F110: DC05 | G110: 1.35 | H110: 91.00 | I110: 632 | J110: 6.95 | K110: 1 | M110: =IFERROR(VLOOKUP(C110,#REF!,6,FALSE),"") ->  | N110: =IFERROR(VLOOKUP(C110,#REF!,6,FALSE),"") ->  | P110: =IFERROR(VLOOKUP(C110,#REF!,6,FALSE),"") -> 
B111: 25HB002661 | C111: SC000416109 | D111: 70 | E111: Laminato a freddo | F111: DC05 | G111: 1.35 | H111: 91.00 | I111: 652 | J111: 7.16 | K111: 1 | M111: =IFERROR(VLOOKUP(C111,#REF!,6,FALSE),"") ->  | N111: =IFERROR(VLOOKUP(C111,#REF!,6,FALSE),"") ->  | P111: =IFERROR(VLOOKUP(C111,#REF!,6,FALSE),"") -> 
B112: 25HB002651 | C112: SC000416110 | D112: 70 | E112: Laminato a freddo | F112: DC05 | G112: 1.35 | H112: 91.00 | I112: 652 | J112: 7.16 | K112: 1 | M112: =IFERROR(VLOOKUP(C112,#REF!,6,FALSE),"") ->  | N112: =IFERROR(VLOOKUP(C112,#REF!,6,FALSE),"") ->  | P112: =IFERROR(VLOOKUP(C112,#REF!,6,FALSE),"") -> 
B113: 25HB0026** | C113: SC000416111 | D113: 70 | E113: Laminato a freddo | F113: DC05 | G113: 1.35 | H113: 91.00 | I113: 659 | J113: 7.24 | K113: 1 | M113: =IFERROR(VLOOKUP(C113,#REF!,6,FALSE),"") ->  | N113: =IFERROR(VLOOKUP(C113,#REF!,6,FALSE),"") ->  | P113: =IFERROR(VLOOKUP(C113,#REF!,6,FALSE),"") -> 
B114: 25HB002640 | C114: SC000416112 | D114: 70 | E114: Laminato a freddo | F114: DC05 | G114: 1.35 | H114: 91.00 | I114: 659 | J114: 7.24 | K114: 1 | M114: =IFERROR(VLOOKUP(C114,#REF!,6,FALSE),"") ->  | N114: =IFERROR(VLOOKUP(C114,#REF!,6,FALSE),"") ->  | P114: =IFERROR(VLOOKUP(C114,#REF!,6,FALSE),"") -> 
B115: 025G201307 | C115: SC000416113 | D115: 71 | E115: Laminato a freddo | F115: DC01 | G115: 0.71 | H115: 145.00 | I115: 1,014 | J115: 3.50 | K115: 2 | M115: =IFERROR(VLOOKUP(C115,#REF!,6,FALSE),"") ->  | N115: =IFERROR(VLOOKUP(C115,#REF!,6,FALSE),"") ->  | P115: =IFERROR(VLOOKUP(C115,#REF!,6,FALSE),"") -> 
B116: 025G201306 | C116: SC000416114 | D116: 72 | E116: Laminato a freddo | F116: DC01 | G116: 0.71 | H116: 145.00 | I116: 1,036 | J116: 3.57 | K116: 2 | M116: =IFERROR(VLOOKUP(C116,#REF!,6,FALSE),"") ->  | N116: =IFERROR(VLOOKUP(C116,#REF!,6,FALSE),"") ->  | P116: =IFERROR(VLOOKUP(C116,#REF!,6,FALSE),"") -> 
B117: 025G201316 | C117: SC000416115 | D117: 73 | E117: Laminato a freddo | F117: DC01 | G117: 0.71 | H117: 134.00 | I117: 2,228 | J117: 4.16 | K117: 4 | M117: =IFERROR(VLOOKUP(C117,#REF!,6,FALSE),"") ->  | N117: =IFERROR(VLOOKUP(C117,#REF!,6,FALSE),"") ->  | P117: =IFERROR(VLOOKUP(C117,#REF!,6,FALSE),"") -> 
B118: 025G204677 | C118: SC000416116 | D118: 74 | E118: Laminato a freddo | F118: DC01 | G118: 1.00 | H118: 81.00 | I118: 2,890 | J118: 8.92 | K118: 4 | M118: =IFERROR(VLOOKUP(C118,#REF!,6,FALSE),"") ->  | N118: =IFERROR(VLOOKUP(C118,#REF!,6,FALSE),"") ->  | P118: =IFERROR(VLOOKUP(C118,#REF!,6,FALSE),"") -> 
B119: 025G204692 | C119: SC000416117 | D119: 75 | E119: Laminato a freddo | F119: DC01 | G119: 1.00 | H119: 81.00 | I119: 3,126 | J119: 9.65 | K119: 4 | M119: =IFERROR(VLOOKUP(C119,#REF!,6,FALSE),"") ->  | N119: =IFERROR(VLOOKUP(C119,#REF!,6,FALSE),"") ->  | P119: =IFERROR(VLOOKUP(C119,#REF!,6,FALSE),"") -> 
B120: 025G203482 | C120: SC000416118 | D120: 76 | E120: Decapato | F120: SAE1006 | G120: 1.85 | H120: 119.00 | I120: 2,504 | J120: 5.26 | K120: 4 | L120: decapato o laf ? | M120: =IFERROR(VLOOKUP(C120,#REF!,6,FALSE),"") ->  | N120: =IFERROR(VLOOKUP(C120,#REF!,6,FALSE),"") ->  | P120: =IFERROR(VLOOKUP(C120,#REF!,6,FALSE),"") -> 
B121: 025G204633 | C121: SC000416119 | D121: 77 | E121: Laminato a freddo | F121: DC01 | G121: 1.00 | H121: 81.00 | I121: 3,122 | J121: 9.64 | K121: 4 | M121: =IFERROR(VLOOKUP(C121,#REF!,6,FALSE),"") ->  | N121: =IFERROR(VLOOKUP(C121,#REF!,6,FALSE),"") ->  | P121: =IFERROR(VLOOKUP(C121,#REF!,6,FALSE),"") -> 
B122: 025G201942 | C122: SC000416120 | D122: 78 | E122: Laminato a freddo | F122: DC03 | G122: 1.21 | H122: 101.00 | I122: 1,608 | J122: 7.96 | K122: 2 | M122: =IFERROR(VLOOKUP(C122,#REF!,6,FALSE),"") ->  | N122: =IFERROR(VLOOKUP(C122,#REF!,6,FALSE),"") ->  | P122: =IFERROR(VLOOKUP(C122,#REF!,6,FALSE),"") -> 
B123: 25H8008536 | C123: SC000416121 | D123: 79 | E123: Laminato a freddo | F123: P05 | G123: 1.20 | H123: 120.00 | I123: 987 | J123: 8.23 | K123: 1 | M123: =IFERROR(VLOOKUP(C123,#REF!,6,FALSE),"") ->  | N123: =IFERROR(VLOOKUP(C123,#REF!,6,FALSE),"") ->  | P123: =IFERROR(VLOOKUP(C123,#REF!,6,FALSE),"") -> 
B124: 25H8008535 | C124: SC000416122 | D124: 79 | E124: Laminato a freddo | F124: P05 | G124: 1.20 | H124: 120.00 | I124: 987 | J124: 8.23 | K124: 1 | M124: =IFERROR(VLOOKUP(C124,#REF!,6,FALSE),"") ->  | N124: =IFERROR(VLOOKUP(C124,#REF!,6,FALSE),"") ->  | P124: =IFERROR(VLOOKUP(C124,#REF!,6,FALSE),"") -> 
B125: 25H8008521 | C125: SC000416123 | D125: 79 | E125: Laminato a freddo | F125: P05 | G125: 1.20 | H125: 120.00 | I125: 977 | J125: 8.14 | K125: 1 | M125: =IFERROR(VLOOKUP(C125,#REF!,6,FALSE),"") ->  | N125: =IFERROR(VLOOKUP(C125,#REF!,6,FALSE),"") ->  | P125: =IFERROR(VLOOKUP(C125,#REF!,6,FALSE),"") -> 
B126: 25H8008522 | C126: SC000416124 | D126: 79 | E126: Laminato a freddo | F126: P05 | G126: 1.20 | H126: 120.00 | I126: 977 | J126: 8.14 | K126: 1 | M126: =IFERROR(VLOOKUP(C126,#REF!,6,FALSE),"") ->  | N126: =IFERROR(VLOOKUP(C126,#REF!,6,FALSE),"") ->  | P126: =IFERROR(VLOOKUP(C126,#REF!,6,FALSE),"") -> 
B127: 25H8008529 | C127: SC000416125 | D127: 80 | E127: Laminato a freddo | F127: P05 | G127: 1.18 | H127: 91.00 | I127: 748 | J127: 8.22 | K127: 1 | M127: =IFERROR(VLOOKUP(C127,#REF!,6,FALSE),"") ->  | N127: =IFERROR(VLOOKUP(C127,#REF!,6,FALSE),"") ->  | P127: =IFERROR(VLOOKUP(C127,#REF!,6,FALSE),"") -> 
B128: 25H8008541 | C128: SC000416126 | D128: 80 | E128: Laminato a freddo | F128: P05 | G128: 1.18 | H128: 91.00 | I128: 748 | J128: 8.22 | K128: 1 | M128: =IFERROR(VLOOKUP(C128,#REF!,6,FALSE),"") ->  | N128: =IFERROR(VLOOKUP(C128,#REF!,6,FALSE),"") ->  | P128: =IFERROR(VLOOKUP(C128,#REF!,6,FALSE),"") -> 
B129: 25H8008516 | C129: SC000416127 | D129: 80 | E129: Laminato a freddo | F129: P05 | G129: 1.18 | H129: 91.00 | I129: 741 | J129: 8.14 | K129: 1 | M129: =IFERROR(VLOOKUP(C129,#REF!,6,FALSE),"") ->  | N129: =IFERROR(VLOOKUP(C129,#REF!,6,FALSE),"") ->  | P129: =IFERROR(VLOOKUP(C129,#REF!,6,FALSE),"") -> 
B130: 25H80085** | C130: SC000416128 | D130: 80 | E130: Laminato a freddo | F130: P05 | G130: 1.18 | H130: 91.00 | I130: 741 | J130: 8.14 | K130: 1 | M130: =IFERROR(VLOOKUP(C130,#REF!,6,FALSE),"") ->  | N130: =IFERROR(VLOOKUP(C130,#REF!,6,FALSE),"") ->  | P130: =IFERROR(VLOOKUP(C130,#REF!,6,FALSE),"") -> 
B131: 24HL013608 | C131: SC000416129 | D131: 81 | E131: Laminato a freddo | F131: DC01C390 | G131: 1.50 | H131: 206.00 | I131: 618 | J131: =I131/K131/H131 -> 3.00 | K131: 1 | M131: =IFERROR(VLOOKUP(C131,#REF!,6,FALSE),"") ->  | N131: =IFERROR(VLOOKUP(C131,#REF!,6,FALSE),"") ->  | P131: =IFERROR(VLOOKUP(C131,#REF!,6,FALSE),"") -> 
B132: 24HL013607 | C132: SC000416130 | D132: 81 | E132: Laminato a freddo | F132: DC01C390 | G132: 1.50 | H132: 206.00 | I132: 618 | J132: 3.00 | K132: 1 | M132: =IFERROR(VLOOKUP(C132,#REF!,6,FALSE),"") ->  | N132: =IFERROR(VLOOKUP(C132,#REF!,6,FALSE),"") ->  | P132: =IFERROR(VLOOKUP(C132,#REF!,6,FALSE),"") -> 
B133: 24HL013613 | C133: SC000416131 | D133: 81 | E133: Laminato a freddo | F133: DC01C390 | G133: 1.50 | H133: 206.00 | I133: 872 | J133: 4.23 | K133: 1 | M133: =IFERROR(VLOOKUP(C133,#REF!,6,FALSE),"") ->  | N133: =IFERROR(VLOOKUP(C133,#REF!,6,FALSE),"") ->  | P133: =IFERROR(VLOOKUP(C133,#REF!,6,FALSE),"") -> 
B134: 25HB005411 | C134: SC000416132 | D134: 82 | E134: Laminato a freddo | F134: DC01C200 | G134: 0.91 | H134: 81.00 | I134: 534 | J134: 6.59 | K134: 1 | M134: =IFERROR(VLOOKUP(C134,#REF!,6,FALSE),"") ->  | N134: =IFERROR(VLOOKUP(C134,#REF!,6,FALSE),"") ->  | P134: =IFERROR(VLOOKUP(C134,#REF!,6,FALSE),"") -> 
B135: 25HB005419 | C135: SC000416133 | D135: 82 | E135: Laminato a freddo | F135: DC01C200 | G135: 0.91 | H135: 81.00 | I135: 534 | J135: 6.59 | K135: 1 | M135: =IFERROR(VLOOKUP(C135,#REF!,6,FALSE),"") ->  | N135: =IFERROR(VLOOKUP(C135,#REF!,6,FALSE),"") ->  | P135: =IFERROR(VLOOKUP(C135,#REF!,6,FALSE),"") -> 
B136: 25HB005437 | C136: SC000416134 | D136: 82 | E136: Laminato a freddo | F136: DC01C200 | G136: 0.91 | H136: 81.00 | I136: 508 | J136: 6.27 | K136: 1 | M136: =IFERROR(VLOOKUP(C136,#REF!,6,FALSE),"") ->  | N136: =IFERROR(VLOOKUP(C136,#REF!,6,FALSE),"") ->  | P136: =IFERROR(VLOOKUP(C136,#REF!,6,FALSE),"") -> 
B137: 25HB005420 | C137: SC000416135 | D137: 82 | E137: Laminato a freddo | F137: DC01C200 | G137: 0.91 | H137: 81.00 | I137: 508 | J137: 6.27 | K137: 1 | M137: =IFERROR(VLOOKUP(C137,#REF!,6,FALSE),"") ->  | N137: =IFERROR(VLOOKUP(C137,#REF!,6,FALSE),"") ->  | P137: =IFERROR(VLOOKUP(C137,#REF!,6,FALSE),"") -> 
B138: 25HB005428 | C138: SC000416136 | D138: 82 | E138: Laminato a freddo | F138: DC01C200 | G138: 0.91 | H138: 81.00 | I138: 508 | J138: 6.27 | K138: 1 | M138: =IFERROR(VLOOKUP(C138,#REF!,6,FALSE),"") ->  | N138: =IFERROR(VLOOKUP(C138,#REF!,6,FALSE),"") ->  | P138: =IFERROR(VLOOKUP(C138,#REF!,6,FALSE),"") -> 
B139: 024G216351 | C139: SC000416137 | D139: 83 | E139: Laminato a freddo | F139: H380LA | G139: 1.26 | H139: 145.00 | I139: 2,772 | J139: 6.37 | K139: 3 | M139: =IFERROR(VLOOKUP(C139,#REF!,6,FALSE),"") ->  | N139: =IFERROR(VLOOKUP(C139,#REF!,6,FALSE),"") ->  | P139: =IFERROR(VLOOKUP(C139,#REF!,6,FALSE),"") -> 
B140: 024G216350 | C140: SC000416138 | D140: 84 | E140: Laminato a freddo | F140: H380LA | G140: 1.26 | H140: 145.00 | I140: 2,770 | J140: 6.37 | K140: 3 | M140: =IFERROR(VLOOKUP(C140,#REF!,6,FALSE),"") ->  | N140: =IFERROR(VLOOKUP(C140,#REF!,6,FALSE),"") ->  | P140: =IFERROR(VLOOKUP(C140,#REF!,6,FALSE),"") -> 
B141: 024G216162 | C141: SC000416139 | D141: 85 | E141: Laminato a freddo | F141: DC03C290 | G141: 0.99 | H141: 58.00 | I141: 938 | J141: 8.09 | K141: 2 | M141: =IFERROR(VLOOKUP(C141,#REF!,6,FALSE),"") ->  | N141: =IFERROR(VLOOKUP(C141,#REF!,6,FALSE),"") ->  | P141: =IFERROR(VLOOKUP(C141,#REF!,6,FALSE),"") -> 
B142: 024G216914 | C142: SC000416140 | D142: 86 | E142: Laminato a freddo | F142: DC01C690 | G142: 1.00 | H142: 65.00 | I142: 1,222 | J142: 3.13 | K142: 6 | M142: =IFERROR(VLOOKUP(C142,#REF!,6,FALSE),"") ->  | N142: =IFERROR(VLOOKUP(C142,#REF!,6,FALSE),"") ->  | P142: =IFERROR(VLOOKUP(C142,#REF!,6,FALSE),"") -> 
B143: 24H8024721 | C143: SC000416141 | D143: 87 | E143: Laminato a freddo | F143: P05 | G143: 1.50 | H143: 50.00 | I143: 186 | J143: 3.72 | K143: 1 | M143: =IFERROR(VLOOKUP(C143,#REF!,6,FALSE),"") ->  | N143: =IFERROR(VLOOKUP(C143,#REF!,6,FALSE),"") ->  | P143: =IFERROR(VLOOKUP(C143,#REF!,6,FALSE),"") -> 
B144: 24H8024724 | C144: SC000416142 | D144: 87 | E144: Laminato a freddo | F144: P05 | G144: 1.50 | H144: 50.00 | I144: 186 | J144: 3.72 | K144: 1 | M144: =IFERROR(VLOOKUP(C144,#REF!,6,FALSE),"") ->  | N144: =IFERROR(VLOOKUP(C144,#REF!,6,FALSE),"") ->  | P144: =IFERROR(VLOOKUP(C144,#REF!,6,FALSE),"") -> 
B145: 24H802473* | C145: SC000416143 | D145: 87 | E145: Laminato a freddo | F145: P05 | G145: 1.50 | H145: 50.00 | I145: 186 | J145: 3.72 | K145: 1 | M145: =IFERROR(VLOOKUP(C145,#REF!,6,FALSE),"") ->  | N145: =IFERROR(VLOOKUP(C145,#REF!,6,FALSE),"") ->  | P145: =IFERROR(VLOOKUP(C145,#REF!,6,FALSE),"") -> 
B146: 24H802473* | C146: SC000416144 | D146: 87 | E146: Laminato a freddo | F146: P05 | G146: 1.50 | H146: 50.00 | I146: 186 | J146: 3.72 | K146: 1 | M146: =IFERROR(VLOOKUP(C146,#REF!,6,FALSE),"") ->  | N146: =IFERROR(VLOOKUP(C146,#REF!,6,FALSE),"") ->  | P146: =IFERROR(VLOOKUP(C146,#REF!,6,FALSE),"") -> 
B147: 024G216914 | C147: SC000416145 | D147: 88 | E147: Laminato a freddo | F147: DC01C690 | G147: 1.00 | H147: 65.00 | I147: 1,222 | J147: 3.13 | K147: 6 | M147: =IFERROR(VLOOKUP(C147,#REF!,6,FALSE),"") ->  | N147: =IFERROR(VLOOKUP(C147,#REF!,6,FALSE),"") ->  | P147: =IFERROR(VLOOKUP(C147,#REF!,6,FALSE),"") -> 
B148: 024G214908 | C148: SC000416146 | D148: 89 | E148: Laminato a freddo | F148: DC01C440 | G148: 0.61 | H148: 58.00 | I148: 1,774 | J148: 6.12 | K148: 5 | M148: =IFERROR(VLOOKUP(C148,#REF!,6,FALSE),"") ->  | N148: =IFERROR(VLOOKUP(C148,#REF!,6,FALSE),"") ->  | P148: =IFERROR(VLOOKUP(C148,#REF!,6,FALSE),"") -> 
B149: 024G214924 | C149: SC000416147 | D149: 90 | E149: Laminato a freddo | F149: DC01C440 | G149: 0.61 | H149: 58.00 | I149: 1,704 | J149: 5.88 | K149: 5 | M149: =IFERROR(VLOOKUP(C149,#REF!,6,FALSE),"") ->  | N149: =IFERROR(VLOOKUP(C149,#REF!,6,FALSE),"") ->  | P149: =IFERROR(VLOOKUP(C149,#REF!,6,FALSE),"") -> 
B150: 025G101**6 | C150: SC000416148 | D150: 91 | E150: Laminato a freddo | F150: DC01C490 | G150: 1.10 | H150: 91.00 | I150: 2,152 | J150: 3.94 | K150: 6 | M150: =IFERROR(VLOOKUP(C150,#REF!,6,FALSE),"") ->  | N150: =IFERROR(VLOOKUP(C150,#REF!,6,FALSE),"") ->  | P150: =IFERROR(VLOOKUP(C150,#REF!,6,FALSE),"") -> 
B151: 024G217130 | C151: SC000416149 | D151: 92 | E151: Laminato a freddo | F151: P05 | G151: 1.18 | H151: 91.00 | I151: 1,718 | J151: 9.44 | K151: 2 | M151: =IFERROR(VLOOKUP(C151,#REF!,6,FALSE),"") ->  | N151: =IFERROR(VLOOKUP(C151,#REF!,6,FALSE),"") ->  | P151: =IFERROR(VLOOKUP(C151,#REF!,6,FALSE),"") -> 
B152: 024G211593 | C152: SC000416150 | D152: 93 | E152: Laminato a freddo | F152: DC03C390 | G152: 1.19 | H152: 180.00 | I152: 2,340 | J152: 6.50 | K152: 2 | M152: =IFERROR(VLOOKUP(C152,#REF!,6,FALSE),"") ->  | N152: =IFERROR(VLOOKUP(C152,#REF!,6,FALSE),"") ->  | P152: =IFERROR(VLOOKUP(C152,#REF!,6,FALSE),"") -> 
B153: 024B201193 | C153: SC000416151 | D153: 94 | E153: Laminato a freddo | F153: DC03 | G153: 1.76 | H153: 99.00 | I153: 1,990 | J153: 6.70 | K153: 3 | M153: =IFERROR(VLOOKUP(C153,#REF!,6,FALSE),"") ->  | N153: =IFERROR(VLOOKUP(C153,#REF!,6,FALSE),"") ->  | P153: =IFERROR(VLOOKUP(C153,#REF!,6,FALSE),"") -> 
B154: 8001382788 | C154: SC000416152 | D154: 95 | E154: Laminato a freddo | F154: HC380LA | G154: 2.40 | H154: 254.00 | I154: 2,050 | J154: 8.07 | K154: 1 | L154: spessore errato 2,40 mm | M154: =IFERROR(VLOOKUP(C154,#REF!,6,FALSE),"") ->  | N154: =IFERROR(VLOOKUP(C154,#REF!,6,FALSE),"") ->  | P154: =IFERROR(VLOOKUP(C154,#REF!,6,FALSE),"") -> 
B155: 8001382791 | C155: SC000416153 | D155: 96 | E155: Laminato a freddo | F155: HC380LA | G155: 2.40 | H155: 254.00 | I155: 2,050 | J155: 8.07 | K155: 1 | L155: spessore errato 2,40 mm | M155: =IFERROR(VLOOKUP(C155,#REF!,6,FALSE),"") ->  | N155: =IFERROR(VLOOKUP(C155,#REF!,6,FALSE),"") ->  | P155: =IFERROR(VLOOKUP(C155,#REF!,6,FALSE),"") -> 
B156: 8001382784 | C156: SC000416154 | D156: 97 | E156: Laminato a freddo | F156: HC380LA | G156: 2.40 | H156: 254.00 | I156: 2,050 | J156: 8.07 | K156: 1 | L156: spessore errato 2,40 mm | M156: =IFERROR(VLOOKUP(C156,#REF!,6,FALSE),"") ->  | N156: =IFERROR(VLOOKUP(C156,#REF!,6,FALSE),"") ->  | P156: =IFERROR(VLOOKUP(C156,#REF!,6,FALSE),"") -> 
B157: 8001382789 | C157: SC000416155 | D157: 98 | E157: Laminato a freddo | F157: HC380LA | G157: 2.40 | H157: 254.00 | I157: 2,050 | J157: 8.07 | K157: 1 | L157: spessore errato 2,40 mm | M157: =IFERROR(VLOOKUP(C157,#REF!,6,FALSE),"") ->  | N157: =IFERROR(VLOOKUP(C157,#REF!,6,FALSE),"") ->  | P157: =IFERROR(VLOOKUP(C157,#REF!,6,FALSE),"") -> 
B158: 8001382792 | C158: SC000416156 | D158: 99 | E158: Laminato a freddo | F158: HC380LA | G158: 2.40 | H158: 254.00 | I158: 2,050 | J158: 8.07 | K158: 1 | L158: spessore errato 2,40 mm | M158: =IFERROR(VLOOKUP(C158,#REF!,6,FALSE),"") ->  | N158: =IFERROR(VLOOKUP(C158,#REF!,6,FALSE),"") ->  | P158: =IFERROR(VLOOKUP(C158,#REF!,6,FALSE),"") -> 
B159: 024G211934 | C159: SC000416157 | D159: 100 | E159: Laminato a freddo | F159: DC01 | G159: 1.00 | H159: 59.00 | I159: 2,276 | J159: 6.43 | K159: 6 | M159: =IFERROR(VLOOKUP(C159,#REF!,6,FALSE),"") ->  | N159: =IFERROR(VLOOKUP(C159,#REF!,6,FALSE),"") ->  | P159: =IFERROR(VLOOKUP(C159,#REF!,6,FALSE),"") -> 
B160: 025G203214 | C160: SC000416158 | D160: 101 | E160: Laminato a freddo | F160: DC05 | G160: 0.72 | H160: 81.00 | I160: 1,396 | J160: 4.31 | K160: 4 | M160: =IFERROR(VLOOKUP(C160,#REF!,6,FALSE),"") ->  | N160: =IFERROR(VLOOKUP(C160,#REF!,6,FALSE),"") ->  | P160: =IFERROR(VLOOKUP(C160,#REF!,6,FALSE),"") -> 
B161: 025B204164 | C161: SC000416159 | D161: 102 | E161: Laminato a freddo | F161: DC04 | G161: 1.36 | H161: 79.00 | I161: 1,122 | J161: 7.10 | K161: 2 | M161: =IFERROR(VLOOKUP(C161,#REF!,6,FALSE),"") ->  | N161: =IFERROR(VLOOKUP(C161,#REF!,6,FALSE),"") ->  | P161: =IFERROR(VLOOKUP(C161,#REF!,6,FALSE),"") -> 
B162: 25HC013239 | C162: SC000416160 | D162: 103 | E162: Decapato | F162: S355MC | G162: 1.50 | H162: 168.00 | I162: 1,500 | J162: 8.93 | K162: 1 | M162: =IFERROR(VLOOKUP(C162,#REF!,6,FALSE),"") ->  | N162: =IFERROR(VLOOKUP(C162,#REF!,6,FALSE),"") ->  | P162: =IFERROR(VLOOKUP(C162,#REF!,6,FALSE),"") -> 
B163: ******** | C163: SC000416161 | D163: 104 | E163: Decapato | F163: S355MC | G163: 1.50 | H163: 168.00 | I163: 1,500 | J163: 8.93 | K163: 1 | M163: =IFERROR(VLOOKUP(C163,#REF!,6,FALSE),"") ->  | N163: =IFERROR(VLOOKUP(C163,#REF!,6,FALSE),"") ->  | P163: =IFERROR(VLOOKUP(C163,#REF!,6,FALSE),"") -> 
B164: 25HC013286 | C164: SC000416162 | D164: 105 | E164: Decapato | F164: S355MC | G164: 1.50 | H164: 248.00 | I164: 2,117 | J164: 8.54 | K164: 1 | M164: =IFERROR(VLOOKUP(C164,#REF!,6,FALSE),"") ->  | N164: =IFERROR(VLOOKUP(C164,#REF!,6,FALSE),"") ->  | P164: =IFERROR(VLOOKUP(C164,#REF!,6,FALSE),"") -> 
B165: ******** | C165: SC000416163 | D165: 106 | E165: Decapato | F165: S355MC | G165: 1.50 | H165: 248.00 | I165: 2,117 | J165: 8.54 | K165: 1 | M165: =IFERROR(VLOOKUP(C165,#REF!,6,FALSE),"") ->  | N165: =IFERROR(VLOOKUP(C165,#REF!,6,FALSE),"") ->  | P165: =IFERROR(VLOOKUP(C165,#REF!,6,FALSE),"") -> 
B166: 024G211934 | C166: SC000416164 | D166: 107 | E166: Laminato a freddo | F166: DC01 | G166: 1.00 | H166: 59.00 | I166: 2,276 | J166: 6.43 | K166: 6 | M166: =IFERROR(VLOOKUP(C166,#REF!,6,FALSE),"") ->  | N166: =IFERROR(VLOOKUP(C166,#REF!,6,FALSE),"") ->  | P166: =IFERROR(VLOOKUP(C166,#REF!,6,FALSE),"") -> 
B167: 025G202044 | C167: SC000416165 | D167: 108 | E167: Laminato a freddo | F167: DC05 | G167: 0.71 | H167: 128.00 | I167: 1,928 | J167: 3.77 | K167: 4 | M167: =IFERROR(VLOOKUP(C167,#REF!,6,FALSE),"") ->  | N167: =IFERROR(VLOOKUP(C167,#REF!,6,FALSE),"") ->  | P167: =IFERROR(VLOOKUP(C167,#REF!,6,FALSE),"") -> 
B168: 025G202043 | C168: SC000416166 | D168: 109 | E168: Laminato a freddo | F168: DC05 | G168: 0.71 | H168: 128.00 | I168: 1,878 | J168: 3.67 | K168: 4 | M168: =IFERROR(VLOOKUP(C168,#REF!,6,FALSE),"") ->  | N168: =IFERROR(VLOOKUP(C168,#REF!,6,FALSE),"") ->  | P168: =IFERROR(VLOOKUP(C168,#REF!,6,FALSE),"") -> 
B169: 024G215640 | C169: SC000416167 | D169: 110 | E169: Laminato a freddo | F169: DC04 | G169: 1.36 | H169: 56.00 | I169: 4,374 | J169: 9.76 | K169: 8 | M169: =IFERROR(VLOOKUP(C169,#REF!,6,FALSE),"") ->  | N169: =IFERROR(VLOOKUP(C169,#REF!,6,FALSE),"") ->  | P169: =IFERROR(VLOOKUP(C169,#REF!,6,FALSE),"") -> 
B170: 024B105422 | C170: SC000416168 | D170: 111 | E170: Laminato a freddo | F170: DC04 | G170: 1.00 | H170: 81.00 | I170: 1,188 | J170: 3.67 | K170: 4 | M170: =IFERROR(VLOOKUP(C170,#REF!,6,FALSE),"") ->  | N170: =IFERROR(VLOOKUP(C170,#REF!,6,FALSE),"") ->  | P170: =IFERROR(VLOOKUP(C170,#REF!,6,FALSE),"") -> 
B171: 024G215617 | C171: SC000416169 | D171: 112 | E171: Laminato a freddo | F171: DC01C440 | G171: 0.61 | H171: 58.00 | I171: 2,892 | J171: 6.23 | K171: 8 | M171: =IFERROR(VLOOKUP(C171,#REF!,6,FALSE),"") ->  | N171: =IFERROR(VLOOKUP(C171,#REF!,6,FALSE),"") ->  | P171: =IFERROR(VLOOKUP(C171,#REF!,6,FALSE),"") -> 
B172: 024G215832 | C172: SC000416170 | D172: 113 | E172: Laminato a freddo | F172: DC03 | G172: 0.90 | H172: 58.00 | I172: 1,506 | J172: 8.66 | K172: 3 | M172: =IFERROR(VLOOKUP(C172,#REF!,6,FALSE),"") ->  | N172: =IFERROR(VLOOKUP(C172,#REF!,6,FALSE),"") ->  | P172: =IFERROR(VLOOKUP(C172,#REF!,6,FALSE),"") -> 
B173: 024G201672 | C173: SC000416171 | D173: 114 | E173: Laminato a freddo | F173: DC04 | G173: 1.36 | H173: 44.00 | I173: 1,948 | J173: 7.38 | K173: 6 | M173: =IFERROR(VLOOKUP(C173,#REF!,6,FALSE),"") ->  | N173: =IFERROR(VLOOKUP(C173,#REF!,6,FALSE),"") ->  | P173: =IFERROR(VLOOKUP(C173,#REF!,6,FALSE),"") -> 
B174: 024B201693 | C174: SC000416172 | D174: 115 | E174: Laminato a freddo | F174: DC04 | G174: 1.36 | H174: 44.00 | I174: 2,132 | J174: 8.08 | K174: 6 | M174: =IFERROR(VLOOKUP(C174,#REF!,6,FALSE),"") ->  | N174: =IFERROR(VLOOKUP(C174,#REF!,6,FALSE),"") ->  | P174: =IFERROR(VLOOKUP(C174,#REF!,6,FALSE),"") -> 
B175: 024B201820 | C175: SC000416173 | D175: 116 | E175: Laminato a freddo | F175: DC01 | G175: 1.00 | H175: 51.50 | I175: 1,790 | J175: 5.79 | K175: 6 | M175: =IFERROR(VLOOKUP(C175,#REF!,6,FALSE),"") ->  | N175: =IFERROR(VLOOKUP(C175,#REF!,6,FALSE),"") ->  | P175: =IFERROR(VLOOKUP(C175,#REF!,6,FALSE),"") -> 
B176: 024B201845 | C176: SC000416174 | D176: 117 | E176: Laminato a freddo | F176: DC01 | G176: 1.00 | H176: 51.50 | I176: 1,806 | J176: 7.01 | K176: 5 | M176: =IFERROR(VLOOKUP(C176,#REF!,6,FALSE),"") ->  | N176: =IFERROR(VLOOKUP(C176,#REF!,6,FALSE),"") ->  | P176: =IFERROR(VLOOKUP(C176,#REF!,6,FALSE),"") -> 
B177: 024G215392 | C177: SC000416175 | D177: 118 | E177: Laminato a freddo | F177: DC01390 | G177: 0.92 | H177: 51.50 | I177: 882 | J177: 5.71 | K177: 3 | M177: =IFERROR(VLOOKUP(C177,#REF!,6,FALSE),"") ->  | N177: =IFERROR(VLOOKUP(C177,#REF!,6,FALSE),"") ->  | P177: =IFERROR(VLOOKUP(C177,#REF!,6,FALSE),"") -> 
B178: 024B202083 | C178: SC000416176 | D178: 119 | E178: Laminato a freddo | F178: DC05 | G178: 1.35 | H178: 79.00 | I178: 2,088 | J178: 6.61 | K178: 4 | M178: =IFERROR(VLOOKUP(C178,#REF!,6,FALSE),"") ->  | N178: =IFERROR(VLOOKUP(C178,#REF!,6,FALSE),"") ->  | P178: =IFERROR(VLOOKUP(C178,#REF!,6,FALSE),"") -> 
B179: 024B202095 | C179: SC000416177 | D179: 120 | E179: Laminato a freddo | F179: DC05 | G179: 1.35 | H179: 79.00 | I179: 2,178 | J179: 6.89 | K179: 4 | M179: =IFERROR(VLOOKUP(C179,#REF!,6,FALSE),"") ->  | N179: =IFERROR(VLOOKUP(C179,#REF!,6,FALSE),"") ->  | P179: =IFERROR(VLOOKUP(C179,#REF!,6,FALSE),"") -> 
B180: 024B201693 | C180: SC000416178 | D180: 121 | E180: Laminato a freddo | F180: DC04 | G180: 1.36 | H180: 44.00 | I180: 2,132 | J180: 8.08 | K180: 6 | M180: =IFERROR(VLOOKUP(C180,#REF!,6,FALSE),"") ->  | N180: =IFERROR(VLOOKUP(C180,#REF!,6,FALSE),"") ->  | P180: =IFERROR(VLOOKUP(C180,#REF!,6,FALSE),"") -> 
B181: 024B201672 | C181: SC000416179 | D181: 122 | E181: Laminato a freddo | F181: DC04 | G181: 1.36 | H181: 44.00 | I181: 1,948 | J181: 7.38 | K181: 6 | M181: =IFERROR(VLOOKUP(C181,#REF!,6,FALSE),"") ->  | N181: =IFERROR(VLOOKUP(C181,#REF!,6,FALSE),"") ->  | P181: =IFERROR(VLOOKUP(C181,#REF!,6,FALSE),"") -> 
B182: 024G213303 | C182: SC000416180 | D182: 123 | E182: Laminato a freddo | F182: DC01 | G182: 0.51 | H182: 58.00 | I182: 2,748 | J182: 7.90 | K182: 6 | M182: =IFERROR(VLOOKUP(C182,#REF!,6,FALSE),"") ->  | N182: =IFERROR(VLOOKUP(C182,#REF!,6,FALSE),"") ->  | P182: =IFERROR(VLOOKUP(C182,#REF!,6,FALSE),"") -> 
B183: 025B300601 | C183: SC000416181 | D183: 124 | E183: Laminato a freddo | F183: DC01 | G183: 1.01 | H183: 45.00 | I183: 2,034 | J183: 4.52 | K183: 10 | M183: =IFERROR(VLOOKUP(C183,#REF!,6,FALSE),"") ->  | N183: =IFERROR(VLOOKUP(C183,#REF!,6,FALSE),"") ->  | P183: =IFERROR(VLOOKUP(C183,#REF!,6,FALSE),"") -> 
B184: 025B300621 | C184: SC000416182 | D184: 125 | E184: Laminato a freddo | F184: DC01 | G184: 1.01 | H184: 45.00 | I184: 1,446 | J184: 4.59 | K184: 7 | M184: =IFERROR(VLOOKUP(C184,#REF!,6,FALSE),"") ->  | N184: =IFERROR(VLOOKUP(C184,#REF!,6,FALSE),"") ->  | P184: =IFERROR(VLOOKUP(C184,#REF!,6,FALSE),"") -> 
B185: 025B300620 | C185: SC000416183 | D185: 126 | E185: Laminato a freddo | F185: DC01 | G185: 1.01 | H185: 45.00 | I185: 1,458 | J185: 4.63 | K185: 7 | M185: =IFERROR(VLOOKUP(C185,#REF!,6,FALSE),"") ->  | N185: =IFERROR(VLOOKUP(C185,#REF!,6,FALSE),"") ->  | P185: =IFERROR(VLOOKUP(C185,#REF!,6,FALSE),"") -> 
B186: 025G203444 | C186: SC000416184 | D186: 127 | E186: Laminato a freddo | F186: RAD1 | G186: 1.50 | H186: 56.00 | I186: 498 | J186: 8.89 | K186: 1 | M186: =IFERROR(VLOOKUP(C186,#REF!,6,FALSE),"") ->  | N186: =IFERROR(VLOOKUP(C186,#REF!,6,FALSE),"") ->  | P186: =IFERROR(VLOOKUP(C186,#REF!,6,FALSE),"") -> 
B187: 025G200354 | C187: SC000416185 | D187: 128 | E187: Laminato a freddo | F187: DC01 | G187: 1.00 | H187: 91.00 | I187: 3,572 | J187: 9.81 | K187: 4 | M187: =IFERROR(VLOOKUP(C187,#REF!,6,FALSE),"") ->  | N187: =IFERROR(VLOOKUP(C187,#REF!,6,FALSE),"") ->  | P187: =IFERROR(VLOOKUP(C187,#REF!,6,FALSE),"") -> 
B188: 025G200395 | C188: SC000416186 | D188: 129 | E188: Laminato a freddo | F188: DC01 | G188: 1.00 | H188: 121.00 | I188: 1,982 | J188: 8.19 | K188: 2 | M188: =IFERROR(VLOOKUP(C188,#REF!,6,FALSE),"") ->  | N188: =IFERROR(VLOOKUP(C188,#REF!,6,FALSE),"") ->  | P188: =IFERROR(VLOOKUP(C188,#REF!,6,FALSE),"") -> 
B189: 024G122408 | C189: SC000416187 | D189: 130 | E189: Laminato a freddo | F189: DC01 | G189: 1.30 | H189: 110.00 | I189: 1,447 | J189: 6.58 | K189: 2 | M189: =IFERROR(VLOOKUP(C189,#REF!,6,FALSE),"") ->  | N189: =IFERROR(VLOOKUP(C189,#REF!,6,FALSE),"") ->  | P189: =IFERROR(VLOOKUP(C189,#REF!,6,FALSE),"") -> 
B190: 024G122407 | C190: SC000416188 | D190: 131 | E190: Laminato a freddo | F190: DC01 | G190: 1.30 | H190: 110.00 | I190: 1,445 | J190: 6.57 | K190: 2 | M190: =IFERROR(VLOOKUP(C190,#REF!,6,FALSE),"") ->  | N190: =IFERROR(VLOOKUP(C190,#REF!,6,FALSE),"") ->  | P190: =IFERROR(VLOOKUP(C190,#REF!,6,FALSE),"") -> 
B191: 024G122412 | C191: SC000416189 | D191: 132 | E191: Laminato a freddo | F191: DC01 | G191: 1.30 | H191: 110.00 | I191: 1,559 | J191: 7.09 | K191: 2 | M191: =IFERROR(VLOOKUP(C191,#REF!,6,FALSE),"") ->  | N191: =IFERROR(VLOOKUP(C191,#REF!,6,FALSE),"") ->  | P191: =IFERROR(VLOOKUP(C191,#REF!,6,FALSE),"") -> 
B192: 24H6005164 | C192: SC000416190 | D192: 133 | E192: Decapato | F192: DD13 | G192: 3.50 | H192: 250.00 | I192: 1,458 | J192: 5.83 | K192: 1 | M192: =IFERROR(VLOOKUP(C192,#REF!,6,FALSE),"") ->  | N192: =IFERROR(VLOOKUP(C192,#REF!,6,FALSE),"") ->  | P192: =IFERROR(VLOOKUP(C192,#REF!,6,FALSE),"") -> 
B193: 24H8019018 | C193: SC000416191 | D193: 134 | E193: Decapato | F193: DD13 | G193: 2.20 | H193: 147.00 | I193: 1,243 | J193: 8.46 | K193: 1 | M193: =IFERROR(VLOOKUP(C193,#REF!,6,FALSE),"") ->  | N193: =IFERROR(VLOOKUP(C193,#REF!,6,FALSE),"") ->  | P193: =IFERROR(VLOOKUP(C193,#REF!,6,FALSE),"") -> 
B194: 24H8019011 | C194: SC000416192 | D194: 135 | E194: Decapato | F194: DD13 | G194: 2.20 | H194: 190.00 | I194: 1,607 | J194: 8.46 | K194: 1 | M194: =IFERROR(VLOOKUP(C194,#REF!,6,FALSE),"") ->  | N194: =IFERROR(VLOOKUP(C194,#REF!,6,FALSE),"") ->  | P194: =IFERROR(VLOOKUP(C194,#REF!,6,FALSE),"") -> 
B195: 024G129362 | C195: SC000416193 | D195: 136 | E195: Laminato a freddo | F195: DC01 | G195: 1.30 | H195: 110.00 | I195: 1,863 | J195: =I195/K195/H195 -> 8.47 | K195: 2 | M195: =IFERROR(VLOOKUP(C195,#REF!,6,FALSE),"") ->  | N195: =IFERROR(VLOOKUP(C195,#REF!,6,FALSE),"") ->  | P195: =IFERROR(VLOOKUP(C195,#REF!,6,FALSE),"") -> 
B196: 024G129361 | C196: SC000416194 | D196: 137 | E196: Laminato a freddo | F196: DC01 | G196: 1.30 | H196: 110.00 | I196: 1,877 | J196: 8.53 | K196: 2 | M196: =IFERROR(VLOOKUP(C196,#REF!,6,FALSE),"") ->  | N196: =IFERROR(VLOOKUP(C196,#REF!,6,FALSE),"") ->  | P196: =IFERROR(VLOOKUP(C196,#REF!,6,FALSE),"") -> 
B197: 024G129368 | C197: SC000416195 | D197: 138 | E197: Laminato a freddo | F197: DC01 | G197: 1.30 | H197: 110.00 | I197: 1,943 | J197: 8.83 | K197: 2 | M197: =IFERROR(VLOOKUP(C197,#REF!,6,FALSE),"") ->  | N197: =IFERROR(VLOOKUP(C197,#REF!,6,FALSE),"") ->  | P197: =IFERROR(VLOOKUP(C197,#REF!,6,FALSE),"") -> 
B198: 025AH00120 | C198: SC000416196 | D198: 139 | E198: Zincato | F198: DX51D+Z100 MAC | G198: 0.90 | H198: 71.00 | I198: 2,812 | J198: 9.90 | K198: 4 | M198: =IFERROR(VLOOKUP(C198,#REF!,6,FALSE),"") ->  | N198: =IFERROR(VLOOKUP(C198,#REF!,6,FALSE),"") ->  | P198: =IFERROR(VLOOKUP(C198,#REF!,6,FALSE),"") -> 
B199: 025AH00112 | C199: SC000416197 | D199: 140 | E199: Zincato | F199: DX51D+Z100 MAC | G199: 0.90 | H199: 71.00 | I199: 2,250 | J199: 10.56 | K199: 3 | M199: =IFERROR(VLOOKUP(C199,#REF!,6,FALSE),"") ->  | N199: =IFERROR(VLOOKUP(C199,#REF!,6,FALSE),"") ->  | P199: =IFERROR(VLOOKUP(C199,#REF!,6,FALSE),"") -> 
B200: 025AH00113 | C200: SC000416198 | D200: 141 | E200: Zincato | F200: DX51D+Z100 MAC | G200: 0.90 | H200: 71.00 | I200: 2,244 | J200: 10.54 | K200: 3 | M200: =IFERROR(VLOOKUP(C200,#REF!,6,FALSE),"") ->  | N200: =IFERROR(VLOOKUP(C200,#REF!,6,FALSE),"") ->  | P200: =IFERROR(VLOOKUP(C200,#REF!,6,FALSE),"") -> 
... 88 more rows
